Workbook

Sheet Cover

Sheet Cashflow
F1: Year | S1: DairyBase
F2: 2017 | S2: Cash Report
E4: Annual | F4: Month | G4: Month | H4: Month | I4: Month | J4: Month | K4: Month | L4: Month | M4: Month | N4: Month | O4: Month | P4: Month | Q4: Month | R4: Annual | S4: Month
E5: =YEAR(E15) -> 2017 | F5: =YEAR(F15) -> 2017 | G5: 2017 | H5: 2017 | I5: 2017 | J5: 2017 | K5: 2017 | L5: 2018 | M5: 2018 | N5: 2018 | O5: 2018 | P5: 2018 | Q5: 2018 | R5: =Q5 -> 2018 | S5: 2016
E6: =IF(E8<=6,E5-1,E5) -> 2016 | F6: =IF(F8<=6,F5-1,F5) -> 2017 | G6: =IF(G8<=6,G5-1,G5) -> 2017 | H6: 2017 | I6: 2017 | J6: 2017 | K6: 2017 | L6: 2017 | M6: 2017 | N6: 2017 | O6: 2017 | P6: 2017 | Q6: 2017 | R6: =Q6 -> 2017 | S6: 2016
E7: =VLOOKUP(E8,Quarters,2,FALSE) ->  | F7: =VLOOKUP(F8,Quarters,2,FALSE) ->  | S7: 1
E8: =MONTH(E15) -> 6 | F8: =MONTH(F15) -> 7 | G8: 8 | H8: 9 | I8: 10 | J8: 11 | K8: 12 | L8: 1 | M8: 2 | N8: 3 | O8: 4 | P8: 5 | Q8: 6 | S8: 7
E9: =DAY(DATE(YEAR(E15),MONTH(E15)+1,1)-1) -> 30 | F9: =DAY(DATE(YEAR(F15),MONTH(F15)+1,1)-1) -> 31 | G9: 31 | H9: 30 | I9: 31 | J9: 30 | K9: 31 | L9: 31 | M9: 28 | N9: 31 | O9: 30 | P9: 31 | Q9: 30 | R9: 365 | S9: 31
E10: =TRIM(TEXT(E5,"####"))&TRIM(TEXT(E8,"0#")) -> 201706 | F10: =TRIM(TEXT(F5,"####"))&TRIM(TEXT(F8,"0#")) -> 201707 | G10: 201708 | H10: 201709 | I10: 201710 | J10: 201711 | K10: 201712 | L10: 201801 | M10: 201802 | N10: 201803 | O10: 201804 | P10: 201805 | Q10: 201806 | S10: 201607
E11: =E16 -> Budget | F11: =F16 -> 0 | G11: 0 | H11: 0 | I11: 0 | J11: 0 | K11: 0 | L11: 0 | M11: 0 | N11: 0 | O11: 0 | P11: 0 | Q11: 0 | R11: =R16 -> Budget | S11: Budget
E14: =F2 -> 2017 | F14: =YEAR(F15) -> 2017 | G14: =YEAR(G15) -> 2017 | H14: 2017 | I14: 2017 | J14: 2017 | K14: 2017 | L14: =YEAR(L15) -> 2018 | M14: 2018 | N14: 2018 | O14: 2018 | P14: 2018 | Q14: 2018 | R14: =TRIM(TEXT(R6,"####")) & "/" & RIGHT(TRIM(TEXT(R6+1,"####")),2) -> 2017/18
E15: =DATEVALUE("15/06/"&TRIM(TEXT($E$14,"####"))) -> 2017-06-15 | F15: =DATEVALUE("15/"&TRIM(TEXT(MONTH(E15)+1,"##"))&"/"&TRIM(TEXT(YEAR(E15),"####"))) -> 2017-07-15 | G15: 2017-08-15 | H15: 2017-09-15 | I15: 2017-10-15 | J15: 2017-11-15 | K15: 2017-12-15 | L15: =DATEVALUE("15/01/"&TRIM(TEXT(YEAR(K15)+1,"####"))) -> 2018-01-15 | M15: =DATEVALUE("15/"&TRIM(TEXT(MONTH(L15)+1,"##"))&"/"&TRIM(TEXT(YEAR(L15),"####"))) -> 2018-02-15 | N15: =DATEVALUE("15/"&TRIM(TEXT(MONTH(M15)+1,"##"))&"/"&TRIM(TEXT(YEAR(M15),"####"))) -> 2018-03-15 | O15: =DATEVALUE("15/"&TRIM(TEXT(MONTH(N15)+1,"##"))&"/"&TRIM(TEXT(YEAR(N15),"####"))) -> 2018-04-15 | P15: =DATEVALUE("15/"&TRIM(TEXT(MONTH(O15)+1,"##"))&"/"&TRIM(TEXT(YEAR(O15),"####"))) -> 2018-05-15 | Q15: =DATEVALUE("15/"&TRIM(TEXT(MONTH(P15)+1,"##"))&"/"&TRIM(TEXT(YEAR(P15),"####"))) -> 2018-06-15 | R15: Annual
E16: Budget | R16: Budget
B17: =GetVersion() -> 
B19: Milk income (Current year) | R19: =SUM(F19,G19,H19,I19,J19,K19,L19,M19,N19,O19,P19,Q19) -> 0 | S19: =IF(ISNUMBER('DairyBase Import'!B19),'DairyBase Import'!B19,"") -> 846454
B20: Milk income (Retrospective/Step ups) | R20: 0
B21: Livestock Sales | R21: 0 | S21: =IF(ISNUMBER('DairyBase Import'!B21),'DairyBase Import'!B21,"") -> 45000
B22: Feed and water sales | R22: 0 | S22: =IF(ISNUMBER('DairyBase Import'!B22),'DairyBase Import'!B22,"") -> 0
B23: Other farm income | R23: 0 | S23: =IF(ISNUMBER('DairyBase Import'!B23),'DairyBase Import'!B23,"") -> 11000
B24: TOTAL CASH INCOME | F24: =SUM(F19:F23) -> 0 | G24: 0 | H24: 0 | I24: 0 | J24: 0 | K24: 0 | L24: 0 | M24: 0 | N24: 0 | O24: 0 | P24: 0 | Q24: 0 | R24: 0 | S24: =IF(ISNUMBER('DairyBase Import'!B24),'DairyBase Import'!B24,"") -> 902454
B26: AI and herd test | R26: =SUM(F26,G26,H26,I26,J26,K26,L26,M26,N26,O26,P26,Q26) -> 0 | S26: =IF(ISNUMBER('DairyBase Import'!B26),'DairyBase Import'!B26,"") -> 11066
B27: Animal health | R27: 0 | S27: =IF(ISNUMBER('DairyBase Import'!B27),'DairyBase Import'!B27,"") -> 16687
B28: Calf rearing | R28: 0 | S28: =IF(ISNUMBER('DairyBase Import'!B28),'DairyBase Import'!B28,"") -> 3146
B29: Other herd costs | R29: 0 | S29: =IF(ISNUMBER('DairyBase Import'!B29),'DairyBase Import'!B29,"") -> 
B30: Total herd costs | F30: =F26+F27+F28 -> 0 | G30: 0 | H30: 0 | I30: 0 | J30: 0 | K30: 0 | L30: 0 | M30: 0 | N30: 0 | O30: 0 | P30: 0 | Q30: 0 | R30: 0 | S30: =IF(ISNUMBER('DairyBase Import'!B30),'DairyBase Import'!B30,"") -> 30899
B31: Shed power | R31: 0 | S31: =IF(ISNUMBER('DairyBase Import'!B31),'DairyBase Import'!B31,"") -> 12000
B32: Dairy supplies | R32: 0 | S32: =IF(ISNUMBER('DairyBase Import'!B32),'DairyBase Import'!B32,"") -> 9858
B33: Other shed costs | R33: 0 | S33: =IF(ISNUMBER('DairyBase Import'!B33),'DairyBase Import'!B33,"") -> 
B34: Total shed costs | F34: =SUM(F31,F32) -> 0 | G34: 0 | H34: 0 | I34: 0 | J34: 0 | K34: 0 | L34: 0 | M34: 0 | N34: 0 | O34: 0 | P34: 0 | Q34: 0 | R34: 0 | S34: =IF(ISNUMBER('DairyBase Import'!B34),'DairyBase Import'!B34,"") -> 21858
B35: Concentrate 1 | R35: 0 | S35: =IF(ISNUMBER('DairyBase Import'!B35),'DairyBase Import'!B35,"") -> 1167.494444
B36: Concentrate 2 | R36: 0
B37: Concentrate 3 | R37: 0
B38: Purchased fodder 1 | R38: 0 | S38: =IF(ISNUMBER('DairyBase Import'!B38),'DairyBase Import'!B38,"") -> 
B39: Purchased fodder 2 | R39: 0
B40: Other puchased feeds | R40: 0
B41: Agistment | R41: 0 | S41: =IF(ISNUMBER('DairyBase Import'!B41),'DairyBase Import'!B41,"") -> 18000
B42: Other feed costs | R42: =SUM(F42,G42,H42,I42,J42,K42,L42,M42,N42,O42,P42,Q42) -> 0 | S42: =IF(ISNUMBER('DairyBase Import'!B42),'DairyBase Import'!B42,"") -> 0
B43: Total purchased feed costs | F43: =SUM(F35:F41) -> 0 | G43: 0 | H43: 0 | I43: 0 | J43: 0 | K43: 0 | L43: 0 | M43: 0 | N43: 0 | O43: 0 | P43: 0 | Q43: 0 | R43: 0 | S43: =IF(ISNUMBER('DairyBase Import'!B43),'DairyBase Import'!B43,"") -> 247595
B44: Hay and silage making | R44: 0 | S44: =IF(ISNUMBER('DairyBase Import'!B44),'DairyBase Import'!B44,"") -> 18545
B45: PKS Fertiliser | R45: 0
B46: Nitrogen | R46: 0 | S46: =IF(ISNUMBER('DairyBase Import'!B46),'DairyBase Import'!B46,"") -> 32910
B47: =IF(LEN(C47)=0,"Lime & Gypsum",TRIM(C47)) -> Lime & Gypsum | R47: 0
B48: Irrigation | R48: 0 | S48: =IF(ISNUMBER('DairyBase Import'!B48),'DairyBase Import'!B48,"") -> 30687
B49: Pasture and cropping | R49: 0 | S49: =IF(ISNUMBER('DairyBase Import'!B49),'DairyBase Import'!B49,"") -> 13593
B50: Fuel and oil | R50: 0 | S50: =IF(ISNUMBER('DairyBase Import'!B50),'DairyBase Import'!B50,"") -> 9594
B51: Total home grown feed costs | F51: =SUM(F44:F50) -> 0 | G51: 0 | H51: 0 | I51: 0 | J51: 0 | K51: 0 | L51: 0 | M51: 0 | N51: 0 | O51: 0 | P51: 0 | Q51: 0 | R51: 0 | S51: =IF(ISNUMBER('DairyBase Import'!B51),'DairyBase Import'!B51,"") -> 105329
B52: VARIABLE COSTS | F52: =SUM(F30,F34,F51,F43) -> 0 | G52: 0 | H52: 0 | I52: 0 | J52: 0 | K52: 0 | L52: 0 | M52: 0 | N52: 0 | O52: 0 | P52: 0 | Q52: 0 | R52: 0 | S52: =IF(ISNUMBER('DairyBase Import'!B52),'DairyBase Import'!B52,"") -> 396781
B54: Employed labour costs | R54: =SUM(F54,G54,H54,I54,J54,K54,L54,M54,N54,O54,P54,Q54) -> 0 | S54: =IF(ISNUMBER('DairyBase Import'!B54),'DairyBase Import'!B54,"") -> 90000
B55: Repairs and maintenance | R55: 0 | S55: =IF(ISNUMBER('DairyBase Import'!B55),'DairyBase Import'!B55,"") -> 20610
B56: Vehicles (Rego and insurance) | R56: 0
B57: Farm insurance | R57: 0 | S57: =IF(ISNUMBER('DairyBase Import'!B57),'DairyBase Import'!B57,"") -> 
B58: Other overheads (Rates/insurance/etc) | R58: 0 | S58: =IF(ISNUMBER('DairyBase Import'!B58),'DairyBase Import'!B58,"") -> 20857
B59: OVERHEAD COSTS | F59: =SUM(F54:F58) -> 0 | G59: =SUM(G54:G58) -> 0 | H59: 0 | I59: 0 | J59: 0 | K59: 0 | L59: 0 | M59: 0 | N59: 0 | O59: 0 | P59: 0 | Q59: 0 | R59: 0 | S59: =IF(ISNUMBER('DairyBase Import'!B59),'DairyBase Import'!B59,"") -> 131467
B61: FARM WORKING EXPENSES (FWE) (Variable plus Cash Overhead Costs) | F61: =F59+F52 -> 0 | G61: 0 | H61: 0 | I61: 0 | J61: 0 | K61: 0 | L61: 0 | M61: 0 | N61: 0 | O61: 0 | P61: 0 | Q61: 0 | R61: =SUM(F61,G61,H61,I61,J61,K61,L61,M61,N61,O61,P61,Q61) -> 0 | S61: =IF(ISNUMBER('DairyBase Import'!B61),'DairyBase Import'!B61,"") -> 528248
B63: FARM OPERATING CASH SURPLUS (Total Cash Income minus Farm Working Expenses) | F63: =F24-F61 -> 0 | G63: 0 | H63: 0 | I63: 0 | J63: 0 | K63: 0 | L63: 0 | M63: 0 | N63: 0 | O63: 0 | P63: 0 | Q63: 0 | R63: =SUM(F63,G63,H63,I63,J63,K63,L63,M63,N63,O63,P63,Q63) -> 0 | S63: =IF(ISNUMBER('DairyBase Import'!B63),'DairyBase Import'!B63,"") -> 374206
B65: Interest loan 1 | R65: =SUM(F65,G65,H65,I65,J65,K65,L65,M65,N65,O65,P65,Q65) -> 0 | S65: =IF(ISNUMBER('DairyBase Import'!B65),'DairyBase Import'!B65,"") -> 35687
B66: Interest loan 2 | R66: 0
B67: Interest loan 3 | R67: 0
B68: Hire purchases | R68: 0
B69: Leases | R69: 0 | S69: =IF(ISNUMBER('DairyBase Import'!B69),'DairyBase Import'!B69,"") -> 56234
B70: Finance costs | F70: =SUM(F65:F69) -> 0 | G70: =SUM(G65:G69) -> 0 | H70: 0 | I70: 0 | J70: 0 | K70: 0 | L70: 0 | M70: 0 | N70: 0 | O70: 0 | P70: 0 | Q70: 0 | R70: 0 | S70: =IF(ISNUMBER('DairyBase Import'!B70),'DairyBase Import'!B70,"") -> 91921
B71: Principal repayments loan 1 | R71: 0 | S71: =IF(ISNUMBER('DairyBase Import'!B71),'DairyBase Import'!B71,"") -> 150000
B72: Principal repayments loan 2 | R72: 0
B73: Principal repayments loan 3 | R73: 0
B74: Livestock purchases | R74: 0
B75: Other capital purchases | R75: 0 | S75: =IF(ISNUMBER('DairyBase Import'!B75),'DairyBase Import'!B75,"") -> 25000
B76: Capital sales/Farm man.deposits | R76: 0
B77: Unpaid bills (60+ days) | R77: 0
B78: Capital Transactions | F78: =SUM(F71:F75)-F76-F77 -> 0 | G78: 0 | H78: 0 | I78: 0 | J78: 0 | K78: 0 | L78: 0 | M78: =SUM(M71:M75)-M76-M77 -> 0 | N78: =SUM(N71:N75)-N76-N77 -> 0 | O78: 0 | P78: 0 | Q78: 0 | R78: 0 | S78: =IF(ISNUMBER('DairyBase Import'!B78),'DairyBase Import'!B78,"") -> 275000
B80: NET FARM CASH FLOW | F80: =F63-(F70+F78) -> 0 | G80: 0 | H80: 0 | I80: 0 | J80: 0 | K80: 0 | L80: 0 | M80: 0 | N80: 0 | O80: 0 | P80: 0 | Q80: 0 | R80: 0 | S80: =IF(ISNUMBER('DairyBase Import'!B80),'DairyBase Import'!B80,"") -> -39744
B81: Non farm income | R81: =SUM(F81,G81,H81,I81,J81,K81,L81,M81,N81,O81,P81,Q81) -> 0 | S81: =IF(ISNUMBER('DairyBase Import'!B81),'DairyBase Import'!B81,"") -> 2971
B82: Non farm expenses/drawings | R82: 0 | S82: =IF(ISNUMBER('DairyBase Import'!B82),'DairyBase Import'!B82,"") -> 50000
B83: GST (Estimate) | R83: 0
B84: Tax (PAYG) | R84: 0
B85: Net Non Farm Income and Tax | F85: =F81-F82-F83-F84 -> 0 | G85: =G81-G82-G83-G84 -> 0 | H85: 0 | I85: 0 | J85: 0 | K85: 0 | L85: 0 | M85: 0 | N85: 0 | O85: 0 | P85: 0 | Q85: 0 | R85: 0 | S85: =S81-S82-S83-S84 -> -47029
B87: Net monthly cash flow total | F87: =F80+F85 -> 0 | G87: 0 | H87: 0 | I87: 0 | J87: 0 | K87: 0 | L87: 0 | M87: 0 | N87: 0 | O87: 0 | P87: 0 | Q87: 0 | R87: =SUM(F87,G87,H87,I87,J87,K87,L87,M87,N87,O87,P87,Q87) -> 0 | S87: =S80+S85 -> -86773
C88: Opening Balance | Q88: Closing Balance
B89: Cumulative cash flow | F89: =F87+C89 -> 0 | G89: =F89+G87 -> 0 | H89: =G89+H87 -> 0 | I89: =H89+I87 -> 0 | J89: 0 | K89: 0 | L89: 0 | M89: 0 | N89: 0 | O89: 0 | P89: 0 | Q89: 0 | R89: =Q89 -> 0
A91: Published by Dairy Australia Limited. This is a reference tool to assist in the decision making process. Whilst all reasonable efforts have been taken to ensure the accuracy of the Dairy cash management planner, use of the information contained herein is at one’s own risk. To the fullest extent permitted by Australian law, Dairy Australia disclaims all liability for any losses, costs, damages and the like sustained or incurred as a result of the use of or reliance upon the information contained herein, including, without limitation, liability stemming from reliance upon any part which may contain inadvertent errors, whether typographical or otherwise, or omissions of any kind. © Dairy Australia Limited 2016. All rights reserved.

Sheet Summary
O2: Values imported from the DairyBase report file
B14: SUMMARY | G14: Milk solids | H14: Cows | I14: % Income | J14: Milking area | K14: Total area | P14: Milksolids | Q14: Cows | R14: % Income | S14: Milking area | T14: Total area
G15: (kg) | J15: (ha) | K15: (ha) | P15: (kg) | S15: (ha) | T15: (ha)
G16: =E20 -> 0 | H16: =E21 -> 0 | P16: =N20 -> 120475.3662 | Q16: =N21 -> 260 | S16: =IF(ISNUMBER('DairyBase Import'!B8),'DairyBase Import'!B8,"") -> 110 | T16: =IF(ISNUMBER('DairyBase Import'!B9),'DairyBase Import'!B9,"") -> 137
B18: MILK PRODUCTION
B19: Milk production - litres (l) | H19: =IF(H16>0,E19/H16,0) -> 0 | J19: =IF(J16>0,E19/J16,0) -> 0 | K19: =IF(K16>0,E19/K16,0) -> 0 | N19: =IF(ISNUMBER('DairyBase Import'!B4),'DairyBase Import'!B4,"") -> 1504062 | Q19: =IF(Q16>0,N19/Q16,0) -> 5784.853846 | S19: =IF(S16>0,N19/S16,0) -> 13673.29091 | T19: =IF(T16>0,N19/T16,0) -> 10978.55474
B20: Milk production - milk solids (kg) | E20: =E19*(E22+E23) -> 0 | G20: =IF(G16>0,1/(E19/G16),0) -> 0 | H20: =IF(H$16>0,$E20/H$16,0) -> 0 | J20: =IF(J$16>0,$E20/J$16,0) -> 0 | K20: =IF(K$16>0,$E20/K$16,0) -> 0 | N20: =N19*(N22+N23) -> 120475.3662 | P20: =IF(P16>0,1/(N19/P16),0) -> 0.0801 | Q20: =IF(Q$16>0,$N20/Q$16,0) -> 463.3667931 | S20: =IF(S$16>0,$N20/S$16,0) -> 1095.230602 | T20: =IF(T$16>0,$N20/T$16,0) -> 879.382235
B21: Cows | N21: =IF(ISNUMBER('DairyBase Import'!B5),'DairyBase Import'!B5,"") -> 260
B22: Butterfat (% m/v) | N22: =IF(ISNUMBER('DairyBase Import'!B6),'DairyBase Import'!B6,"") -> 0.0454
B23: Protein (% m/v) | N23: =IF(ISNUMBER('DairyBase Import'!B7),'DairyBase Import'!B7,"") -> 0.0347
B24: Milk payment equivilent ($/kg MS) | E24: =IF(E20>0,E27/E20,0) -> 0 | N24: =IF(N20>0,E27/N20,) -> 0
B25: Milk payment (cpl) | E25: =IF(E19>0,E27*100/E19,0) -> 0 | N25: =IF(N19>0,E27*100/N19,) -> 0
B27: Milk income (Current year) | E27: =Cashflow!R19 -> 0 | G27: =IF(G$16>0,$E27/G$16,0) -> 0 | H27: 0 | I27: =IF(E$32>0,$E27/E$32,0) -> 0 | J27: =IF(J$16>0,$E27/J$16,0) -> 0 | K27: =IF(K$16>0,$E27/K$16,0) -> 0
B28: Milk income (Retrospective/Step ups) | E28: =Cashflow!R20 -> 0 | G28: 0 | H28: 0 | I28: 0 | J28: =IF(J$16>0,$E28/J$16,0) -> 0 | K28: 0
B29: Livestock sales | E29: =Cashflow!R21 -> 0 | G29: 0 | H29: 0 | I29: 0 | J29: 0 | K29: 0
B30: Feed and water sales | E30: =Cashflow!R22 -> 0 | G30: 0 | H30: 0 | I30: 0 | J30: 0 | K30: 0
B31: Other farm income | E31: =Cashflow!R23 -> 0 | G31: 0 | H31: 0 | I31: 0 | J31: =IF(J$16>0,$E31/J$16,0) -> 0 | K31: =IF(K$16>0,$E31/K$16,0) -> 0
B32: Total Cash Income | E32: =Cashflow!R24 -> 0 | G32: =IF(G$16>0,$E32/G$16,0) -> 0 | H32: =IF(H$16>0,$E32/H$16,0) -> 0 | I32: 0 | J32: =IF(J$16>0,$E32/J$16,0) -> 0 | K32: =IF(K$16>0,$E32/K$16,0) -> 0
I33: 0
B34: AI and herd test | E34: =Cashflow!R26 -> 0 | G34: =IF(G$16>0,$E34/G$16,0) -> 0 | H34: =IF(H$16>0,$E34/H$16,0) -> 0 | I34: 0 | J34: =IF(J$16>0,$E34/J$16,0) -> 0 | K34: 0
B35: Animal health | E35: =Cashflow!R27 -> 0 | G35: =IF(G$16>0,$E35/G$16,0) -> 0 | H35: 0 | I35: 0 | J35: 0 | K35: 0
B36: Calf rearing | E36: =Cashflow!R28 -> 0 | G36: =IF(G$16>0,$E36/G$16,0) -> 0 | H36: 0 | I36: 0 | J36: 0 | K36: 0
B37: Other herd costs | E37: =Cashflow!R29 -> 0 | G37: =IF(G$16>0,$E37/G$16,0) -> 0 | H37: =IF(H$16>0,$E37/H$16,0) -> 0 | I37: =IF(E$32>0,$E37/E$32,0) -> 0 | J37: =IF(J$16>0,$E37/J$16,0) -> 0 | K37: =IF(K$16>0,$E37/K$16,0) -> 0
B38: Total Herd Costs | E38: =Cashflow!R30 -> 0 | G38: =IF(G$16>0,$E38/G$16,0) -> 0 | H38: =IF(H$16>0,$E38/H$16,0) -> 0 | I38: 0 | J38: =IF(J$16>0,$E38/J$16,0) -> 0 | K38: =IF(K$16>0,$E38/K$16,0) -> 0
I39: 0
B40: Shed power | E40: =Cashflow!R31 -> 0 | G40: =IF(G$16>0,$E40/G$16,0) -> 0 | H40: 0 | I40: 0 | J40: =IF(J$16>0,$E40/J$16,0) -> 0 | K40: 0
B41: Dairy supplies | E41: =Cashflow!R32 -> 0 | G41: =IF(G$16>0,$E41/G$16,0) -> 0 | H41: 0 | I41: 0 | J41: 0 | K41: 0
B42: Other shed costs | E42: =Cashflow!R33 -> 0 | G42: =IF(G$16>0,$E42/G$16,0) -> 0 | H42: =IF(H$16>0,$E42/H$16,0) -> 0 | I42: =IF(E$32>0,$E42/E$32,0) -> 0 | J42: =IF(J$16>0,$E42/J$16,0) -> 0 | K42: =IF(K$16>0,$E42/K$16,0) -> 0
B43: Total shed costs | E43: =Cashflow!R34 -> 0 | G43: =IF(G$16>0,$E43/G$16,0) -> 0 | H43: =IF(H$16>0,$E43/H$16,0) -> 0 | I43: 0 | J43: =IF(J$16>0,$E43/J$16,0) -> 0 | K43: =IF(K$16>0,$E43/K$16,0) -> 0
I44: 0
B45: Concentrate 1 | E45: =Cashflow!R35 -> 0 | G45: =IF(G$16>0,$E45/G$16,0) -> 0 | H45: 0 | I45: 0 | J45: =IF(J$16>0,$E45/J$16,0) -> 0 | K45: 0
B46: Concentrate 2 | E46: =Cashflow!R36 -> 0 | G46: 0 | H46: 0 | I46: 0 | J46: 0 | K46: 0
B47: Concentrate 3 | E47: =Cashflow!R37 -> 0 | G47: 0 | H47: 0 | I47: 0 | J47: 0 | K47: 0
B48: Purchased fodder 1 | E48: =Cashflow!R38 -> 0 | G48: 0 | H48: 0 | I48: 0 | J48: 0 | K48: 0
B49: Purchased fodder 2 | E49: =Cashflow!R39 -> 0 | G49: 0 | H49: 0 | I49: 0 | J49: 0 | K49: 0
B50: Other puchased feeds | E50: =Cashflow!R40 -> 0 | G50: 0 | H50: 0 | I50: 0 | J50: 0 | K50: 0
B51: Agistment | E51: =Cashflow!R41 -> 0 | G51: 0 | I51: 0
B52: Other feed costs | E52: =Cashflow!R42 -> 0 | G52: =IF(G$16>0,$E52/G$16,0) -> 0 | H52: =IF(H$16>0,$E52/H$16,0) -> 0 | I52: =IF(E$32>0,$E52/E$32,0) -> 0 | J52: =IF(J$16>0,$E52/J$16,0) -> 0 | K52: =IF(K$16>0,$E52/K$16,0) -> 0
B53: Total Purchased Feed Costs | E53: =Cashflow!R43 -> 0 | G53: =IF(G$16>0,$E53/G$16,0) -> 0 | H53: =IF(H$16>0,$E53/H$16,0) -> 0 | I53: 0 | J53: =IF(J$16>0,$E53/J$16,0) -> 0 | K53: =IF(K$16>0,$E53/K$16,0) -> 0
I54: 0
B55: Hay and silage making | E55: =Cashflow!R44 -> 0 | G55: =IF(G$16>0,$E55/G$16,0) -> 0 | H55: 0 | I55: 0 | J55: =IF(J$16>0,$E55/J$16,0) -> 0 | K55: 0
B56: PKS fertiliser | E56: =Cashflow!R45 -> 0 | G56: 0 | H56: 0 | I56: 0 | J56: 0 | K56: 0
B57: Nitrogen | E57: =Cashflow!R46 -> 0 | G57: 0 | H57: 0 | I57: 0 | J57: 0 | K57: 0
B58: Lime and gypsum | E58: =Cashflow!R47 -> 0 | G58: 0 | H58: 0 | I58: 0 | J58: 0 | K58: 0
B59: Irrigation | E59: =Cashflow!R48 -> 0 | G59: =IF(G$16>0,$E59/G$16,0) -> 0 | H59: =IF(H$16>0,$E59/H$16,0) -> 0 | I59: 0 | J59: 0 | K59: 0
B60: Pasture and cropping | E60: =Cashflow!R49 -> 0 | G60: =IF(G$16>0,$E60/G$16,0) -> 0 | H60: 0 | I60: 0 | J60: 0 | K60: 0
B61: Fuel and oil | E61: =Cashflow!R50 -> 0 | G61: =IF(G$16>0,$E61/G$16,0) -> 0 | H61: 0 | I61: 0 | J61: 0 | K61: 0
B62: Total home grown feed costs | E62: =Cashflow!R51 -> 0 | G62: =IF(G$16>0,$E62/G$16,0) -> 0 | H62: =IF(H$16>0,$E62/H$16,0) -> 0 | I62: =IF(E$32>0,$E62/E$32,0) -> 0 | J62: =IF(J$16>0,$E62/J$16,0) -> 0 | K62: =IF(K$16>0,$E62/K$16,0) -> 0
I63: 0
B64: VARIABLE COSTS | E64: =Cashflow!R52 -> 0 | G64: =IF(G$16>0,$E64/G$16,0) -> 0 | H64: =IF(H$16>0,$E64/H$16,0) -> 0 | I64: 0 | J64: =IF(J$16>0,$E64/J$16,0) -> 0 | K64: =IF(K$16>0,$E64/K$16,0) -> 0
I65: 0
B66: Employed labour costs | E66: =Cashflow!R54 -> 0 | G66: =IF(G$16>0,$E66/G$16,0) -> 0 | H66: 0 | I66: 0 | J66: =IF(J$16>0,$E66/J$16,0) -> 0 | K66: 0
B67: Repairs and maintenance | E67: =Cashflow!R55 -> 0 | G67: 0 | H67: 0 | I67: 0 | J67: 0 | K67: 0
B68: Vehicles (rego and insurance) | E68: =Cashflow!R56 -> 0 | G68: 0 | H68: 0 | I68: 0 | J68: 0 | K68: 0
B69: Farm insurance | E69: =Cashflow!R57 -> 0 | G69: 0 | H69: 0 | I69: 0 | J69: 0 | K69: 0
B70: Other overheads (rates/general freight/etc) | E70: =Cashflow!R58 -> 0 | G70: 0 | H70: 0 | I70: 0 | J70: 0 | K70: 0
B71: OVERHEAD COSTS | E71: =Cashflow!R59 -> 0 | G71: =IF(G$16>0,$E71/G$16,0) -> 0 | H71: =IF(H$16>0,$E71/H$16,0) -> 0 | I71: 0 | J71: =IF(J$16>0,$E71/J$16,0) -> 0 | K71: =IF(K$16>0,$E71/K$16,0) -> 0
I72: 0
B73: FARM WORKING EXPENSES (FWE) (Variable plus cash overhead costs) | E73: =Cashflow!R61 -> 0 | G73: =IF(G$16>0,$E73/G$16,0) -> 0 | H73: 0 | I73: 0 | J73: =IF(J$16>0,$E73/J$16,0) -> 0 | K73: =IF(K$16>0,$E73/K$16,0) -> 0
I74: 0
B75: FARM OPERATING CASH SURPLUS (Total cash income minus farm working expenses) | E75: =Cashflow!R63 -> 0 | G75: =IF(G$16>0,$E75/G$16,0) -> 0 | H75: =IF(H$16>0,$E75/H$16,0) -> 0 | I75: 0 | J75: =IF(J$16>0,$E75/J$16,0) -> 0 | K75: =IF(K$16>0,$E75/K$16,0) -> 0
I76: 0
B77: Interest (Total) | E77: =SUM(Cashflow!R65:R67) -> 0 | G77: =IF(G$16>0,$E77/G$16,0) -> 0 | H77: 0 | I77: 0 | J77: =IF(J$16>0,$E77/J$16,0) -> 0 | K77: 0
B78: Hire purchases | E78: =Cashflow!R68 -> 0 | G78: =IF(G$16>0,$E78/G$16,0) -> 0 | H78: 0 | I78: 0 | J78: 0 | K78: 0
B79: Leases | E79: =Cashflow!R69 -> 0 | G79: =IF(G$16>0,$E79/G$16,0) -> 0 | H79: 0 | I79: 0 | J79: 0 | K79: 0
B80: FINANCE COSTS | E80: =Cashflow!R70 -> 0 | G80: =IF(G$16>0,$E80/G$16,0) -> 0 | H80: =IF(H$16>0,$E80/H$16,0) -> 0 | I80: 0 | J80: =IF(J$16>0,$E80/J$16,0) -> 0 | K80: =IF(K$16>0,$E80/K$16,0) -> 0
I81: 0
B82: Loan principal repayments (Total) | E82: =SUM(Cashflow!R71:R73) -> 0 | G82: =IF(G$16>0,$E82/G$16,0) -> 0 | H82: =IF(H$16>0,$E82/H$16,0) -> 0 | I82: 0 | J82: =IF(J$16>0,$E82/J$16,0) -> 0 | K82: 0
B83: Livestock purchases | E83: =Cashflow!R74 -> 0 | J83: 0 | K83: 0
B84: Other capital purchases | E84: =Cashflow!R75 -> 0 | G84: =IF(G$16>0,$E84/G$16,0) -> 0 | H84: =IF(H$16>0,$E84/H$16,0) -> 0 | I84: =IF(E$32>0,$E84/E$32,0) -> 0 | J84: 0 | K84: 0
B85: Capital sales/Capital introduced/FMDs | E85: =Cashflow!R76 -> 0 | G85: =IF(G$16>0,$E85/G$16,0) -> 0 | H85: 0 | I85: 0 | J85: 0 | K85: 0
B86: Unpaid bills | E86: =Cashflow!R77 -> 0 | G86: =IF(G$16>0,$E86/G$16,0) -> 0 | H86: 0 | I86: 0 | J86: 0 | K86: 0
B87: CAPITAL TRANSACTIONS | E87: =Cashflow!R78 -> 0 | G87: =IF(G$16>0,$E87/G$16,0) -> 0 | H87: =IF(H$16>0,$E87/H$16,0) -> 0 | I87: =IF(E$32>0,$E87/E$32,0) -> 0 | J87: =IF(J$16>0,$E87/J$16,0) -> 0 | K87: =IF(K$16>0,$E87/K$16,0) -> 0
I88: 0
B89: NET FARM CASH FLOW | E89: =Cashflow!R80 -> 0 | G89: =IF(G$16>0,$E89/G$16,0) -> 0 | H89: 0 | I89: 0 | J89: =IF(J$16>0,$E89/J$16,0) -> 0 | K89: =IF(K$16>0,$E89/K$16,0) -> 0
I90: 0
B91: Non farm income | E91: =Cashflow!R81 -> 0 | G91: =IF(G$16>0,$E91/G$16,0) -> 0 | H91: 0 | I91: 0 | J91: =IF(J$16>0,$E91/J$16,0) -> 0 | K91: 0
B92: Non farm expenses/drawings | E92: =Cashflow!R82 -> 0 | G92: =IF(G$16>0,$E92/G$16,0) -> 0 | H92: 0 | I92: 0 | J92: 0 | K92: 0
B93: GST (Monthly estimate) | E93: =Cashflow!R83 -> 0 | G93: =IF(G$16>0,$E93/G$16,0) -> 0 | H93: 0 | I93: 0 | J93: 0 | K93: 0
B94: Tax | E94: =Cashflow!R84 -> 0 | G94: =IF(G$16>0,$E94/G$16,0) -> 0 | H94: 0 | I94: 0 | J94: 0 | K94: 0
B95: Net non farm income and tax | E95: =Cashflow!R85 -> 0 | G95: =IF(G$16>0,$E95/G$16,0) -> 0 | H95: =IF(H$16>0,$E95/H$16,0) -> 0 | I95: 0 | J95: =IF(J$16>0,$E95/J$16,0) -> 0 | K95: =IF(K$16>0,$E95/K$16,0) -> 0
I96: 0
B97: Net Cash Flow Total | E97: =Cashflow!R87 -> 0 | G97: =IF(G$16>0,$E97/G$16,0) -> 0 | H97: 0 | I97: 0 | J97: =IF(J$16>0,$E97/J$16,0) -> 0 | K97: =IF(K$16>0,$E97/K$16,0) -> 0

Sheet Standard chart of accounts

Sheet DairyBase Import (hidden)
A1: Last Import Format: | B1: 1 | D1: Ranges | F1: Ranges 1 | H1: Ranges 2 | J1: Ranges 3 | L1: Ranges 4 | N1: Ranges 5 | R1: DairyBase Farm Data Output Report | T1: Version 2.8 April 6 2016 | W1: DairyBase Farm Data Output Report | Y1: Version 2.10 February 2 2017 | AB1: DairyBase Farm Data Output Report | AD1: Version 3.5 May 24 2017 | AG1: DairyBase Farm Data Output Report | AI1: Version 3.6 December 1 2017 | AL1: DairyBase Farm Data Output Report | AN1: Version 3.7 April 23 2018
D2: R1 | E2: R2 | F2: R1 | G2: R2 | H2: R1 | I2: R2 | J2: R1 | K2: R2 | L2: R1 | M2: R2 | N2: R1 | O2: R2
A3: Summary | R3: Farm Dataset Details | W3: Farm Dataset Details | AB3: Farm Dataset Details | AG3: Farm Dataset Details | AL3: Farm Dataset Details
A4: Milk production (litres) | B4: =IF(E4=0,INDIRECT(D4),SUM(INDIRECT(D4),INDIRECT(E4))) -> 1504062 | D4: =OFFSET(D4,0,$B$1*2) -> T26 | E4: 0 | F4: T26 | H4: Y26 | J4: AD26 | L4: AI62 | N4: AN64
A5: Cows milked | B5: 260 | D5: T20 | E5: 0 | F5: T20 | H5: Y20 | J5: AD20 | L5: AI56 | N5: AN58 | R5: Name | S5: Example Farm 13/14 | W5: Name | X5: DR 300 cows | AB5: Name | AC5: DR 260 cows | AG5: Name | AH5: DR 260 cows | AL5: Name | AM5: Default 1
A6: Fat % | B6: 0.0454 | D6: T30 | E6: 0 | F6: T30 | H6: Y30 | J6: AD30 | L6: AI66 | N6: AN68 | R6: Description | W6: Description | AB6: Description | AG6: Description | AL6: Description
A7: Protein % | B7: 0.0347 | D7: T31 | E7: 0 | F7: T31 | H7: Y31 | J7: AD31 | L7: AI67 | N7: AN69 | R7: DairyBase Farm Id | S7: DA0001 | W7: DairyBase Farm Id | X7: DA0001 | AB7: DairyBase Farm Id | AC7: DA0001 | AG7: DairyBase Farm Id | AH7: DA0001 | AL7: DairyBase Farm Id | AM7: DA0001
A8: Milking area (ha) | B8: 110 | D8: T16 | E8: 0 | F8: T16 | H8: Y16 | J8: AD16 | L8: AI52 | N8: AN54 | R8: Financial Year | S8: 13/14 | W8: Financial Year | X8: 16/17 | AB8: Financial Year | AC8: 16/17 | AG8: Financial Year | AH8: 16/17 | AL8: Region | AM8: Gippsland
A9: Total area (ha) | B9: 137 | D9: T15 | E9: 0 | F9: T15 | H9: Y15 | J9: AD15 | L9: AI51 | N9: AN53 | R9: Privacy Setting | S9: Public Access | W9: Privacy Setting | X9: Group Comparison | AB9: Privacy Setting | AC9: Group Comparison | AG9: Privacy Setting | AH9: Group Comparison | AL9: State
R10: Dataset Type | S10: Created Scenario | W10: Dataset Type | X10: Created Scenario | AB10: Dataset Type | AC10: Created Scenario | AG10: Dataset Type | AH10: Created Scenario | AL10: Financial Year | AM10: 17/18
R11: Dataset Notes | W11: Dataset Notes | AB11: Dataset Notes | AG11: Dataset Notes | AL11: Privacy Setting | AM11: Group Comparison
AL12: Dataset Type | AM12: Created Scenario
R13: Physical Report | W13: Physical Report | AB13: Physical Report | AG13: Farm Business Summary | AL13: Dataset Notes
R14: Farm Area | W14: Farm Area | AB14: Farm Area | AG14: Physical Parameters
R15: Usable Area | S15: ha | T15: 137 | W15: Usable Area | X15: ha | Y15: 150 | AB15: Usable Area | AC15: ha | AD15: 150 | AG15: Usable Area | AH15: ha | AI15: 150 | AL15: Farm Business Summary
R16: Milking Area | S16: ha | T16: 110 | W16: Milking Area | X16: ha | Y16: 100 | AB16: Milking Area | AC16: ha | AD16: 100 | AG16: Milking Area | AH16: ha | AI16: 100 | AL16: Physical Parameters
R17: Leased Area | S17: ha | T17: 72 | W17: Leased Area | X17: ha | Y17: 0 | AB17: Leased Area | AC17: ha | AD17: 0 | AG17: Cows Milked | AH17: Number | AI17: 260 | AL17: Usable Area | AM17: ha | AN17: 137
R18: Irrigated Area | S18: ha | T18: 10 | W18: Irrigated Area | X18: ha | Y18: 0 | AB18: Irrigated Area | AC18: ha | AD18: 0 | AG18: Annual Stocking Rate | AH18: Milking cows / Milking ha | AI18: 2.6 | AL18: Milking Area | AM18: ha | AN18: 110
A19: Milk income (Current year) | B19: =IF(E19=0,INDIRECT(D19),SUM(INDIRECT(D19),INDIRECT(E19))) -> 846454 | D19: =OFFSET(D19,0,$B$1*2) -> T119 | E19: =OFFSET(E19,0,$B$1*2) -> 0 | F19: T119 | H19: Y119 | J19: AD121 | L19: AI106 | N19: AN111 | R19: Livestock | W19: Livestock | AB19: Livestock | AG19: Milk Production - Litres | AH19: Total Litres | AI19: 1768000 | AL19: Cows Milked | AM19: Number | AN19: 177.9166667
A20: Milk income (Retrospective/Step ups) | R20: Cows Milked | S20: Number | T20: 260 | W20: Cows Milked | X20: Number | Y20: 300 | AB20: Cows Milked | AC20: Number | AD20: 260 | AG20: Milk Production - Kg Milksolids | AH20: Total Milksolids | AI20: 132600 | AL20: Annual Stocking Rate | AM20: Milking cows / Milking ha | AN20: 1.617424242
A21: Livestock Sales | B21: =IF(E21=0,INDIRECT(D21),SUM(INDIRECT(D21),INDIRECT(E21))) -> 45000 | D21: =OFFSET(D21,0,$B$1*2) -> T70 | E21: 0 | F21: T70 | H21: Y71 | J21: AD71 | L21: AI107 | N21: AN112 | R21: Annual Stocking Rate | S21: Milking cows / Milking ha | T21: 2.363636364 | W21: Annual Stocking Rate | X21: Milking cows / Milking ha | Y21: 3 | AB21: Annual Stocking Rate | AC21: Milking cows / Milking ha | AD21: 2.6 | AG21: Homegrown Feed - Milking Area | AH21: t DM / Milking ha | AI21: 9.113317411 | AL21: Milk Production - Litres | AM21: Total Litres | AN21: 1504062
A22: Feed and water sales | B22: 0 | D22: T71 | E22: 0 | F22: T71 | H22: Y72 | J22: AD72 | K22: AD73 | L22: AI108 | M22: AI109 | N22: AN113 | O22: AN114 | R22: Annual Stocking Rate | S22: Milking cows / Usable ha | T22: 1.897810219 | W22: Annual Stocking Rate | X22: Milking cows / Usable ha | Y22: 2 | AB22: Annual Stocking Rate | AC22: Milking cows / Usable ha | AD22: 1.733333333 | AG22: Homegrown Feed - Usable Area | AH22: t DM / Usable ha | AI22: 8.328771277 | AL22: Milk Production - Kg Milksolids | AM22: Total Milksolids | AN22: 120522
A23: Other farm income | B23: 11000 | D23: T72 | E23: 0 | F23: T72 | H23: Y73 | J23: AD74 | L23: AI110 | N23: AN115 | R23: Cow Liveweight | S23: kgs | T23: 520 | W23: Cow Liveweight | X23: kgs | Y23: 550 | AB23: Cow Liveweight | AC23: kgs | AD23: 550 | AG23: Proportion of Homegrown Feed | AH23: % of Diet | AI23: 0.6786805946 | AL23: Homegrown Feed - Milking Area | AM23: t DM / Milking ha | AN23: 9.5972068
A24: TOTAL CASH INCOME | B24: 902454 | D24: T73 | E24: 0 | F24: T73 | H24: Y74 | J24: AD75 | L24: AI111 | N24: AN116 | R24: Cow Liveweight per Hectare | S24: kgs / Milking ha | T24: 1229.090909 | W24: Cow Liveweight per Hectare | X24: kgs / Milking ha | Y24: 1650 | AB24: Cow Liveweight per Hectare | AC24: kgs / Milking ha | AD24: 1430 | AG24: Cows per Labour Unit | AH24: Milking cows / FTE | AI24: 100.3861004 | AL24: Homegrown Feed - Usable Area | AM24: t DM / Usable ha | AN24: 10.08236152
R25: Milk Production | T25: Quantity | W25: Milk Production | Y25: Quantity | AB25: Milk Production | AD25: Quantity | AL25: Proportion of Homegrown Feed | AM25: % of Diet | AN25: 0.8328510371
A26: AI and herd test | B26: =IF(E26=0,INDIRECT(D26),SUM(INDIRECT(D26),INDIRECT(E26))) -> 11066 | D26: =OFFSET(D26,0,$B$1*2) -> T75 | E26: 0 | F26: T75 | H26: Y76 | J26: AD77 | L26: AI113 | N26: AN118 | R26: Litres | S26: Litres | T26: 1504062 | W26: Litres | X26: Litres | Y26: 2100000 | AB26: Litres | AC26: Litres | AD26: 1768000 | AI26: Total | AL26: Cows per Labour Unit | AM26: Milking cows / FTE | AN26: 65.89506173
A27: Animal health | B27: 16687 | D27: T76 | E27: 0 | F27: T76 | H27: Y77 | J27: AD78 | L27: AI114 | N27: AN119 | R27: Fat | S27: kg | T27: 68264 | W27: Fat | X27: kg | Y27: 90300 | AB27: Fat | AC27: kg | AD27: 76024 | AG27: Cash | AI27: ($)
A28: Calf rearing | B28: 3146 | D28: T77 | E28: 0 | F28: T77 | H28: Y78 | J28: AD79 | L28: AI115 | N28: AN120 | R28: Protein | S28: kg | T28: 52258 | W28: Protein | X28: kg | Y28: 67200 | AB28: Protein | AC28: kg | AD28: 56576 | AG28: Milk Income | AI28: 737256 | AN28: Total
A29: Other herd costs | D29: T78 | E29: 0 | F29: T78 | H29: Y79 | J29: AD80 | L29: AI116 | N29: AN121 | R29: Milksolids | S29: kg | T29: 120522 | W29: Milksolids | X29: kg | Y29: 157500 | AB29: Milksolids | AC29: kg | AD29: 132600 | AG29: Total Farm Cash Income | AI29: 779756 | AL29: Cash | AN29: ($)
A30: Total herd costs | B30: 30899 | D30: T79 | E30: 0 | F30: T79 | H30: Y80 | J30: AD81 | L30: AI117 | N30: AN122 | R30: Fat % | S30: % w/v | T30: 0.0454 | W30: Fat % | X30: % w/v | Y30: 0.043 | AB30: Fat % | AC30: % w/v | AD30: 0.043 | AG30: Total Farm Working Expenses | AI30: 516693 | AL30: Milk Income | AN30: 636454
A31: Shed power | B31: 12000 | D31: T80 | E31: 0 | F31: T80 | H31: Y81 | J31: AD82 | L31: AI118 | N31: AN123 | R31: Protein % | S31: % w/v | T31: 0.0347 | W31: Protein % | X31: % w/v | Y31: 0.032 | AB31: Protein % | AC31: % w/v | AD31: 0.032 | AG31: Farm Operating Cash Surplus | AI31: 263063 | AL31: Total Farm Cash Income | AN31: 671454
A32: Dairy supplies | B32: 9858 | D32: T81 | E32: 0 | F32: T81 | H32: Y82 | J32: AD83 | L32: AI119 | N32: AN124 | R32: Milksolids as % of Cow Liveweight | S32: kg MS / Cow Liveweight | T32: 0.8914349112 | W32: Milksolids as % of Cow Liveweight | X32: kg MS / Cow Liveweight | Y32: 0.9545454545 | AB32: Milksolids as % of Cow Liveweight | AC32: kg MS / Cow Liveweight | AD32: 0.9272727273 | AG32: Finance Costs (Interest & Lease) | AI32: 50000 | AL32: Total Farm Working Expenses | AN32: 396148
A33: Other shed costs | D33: T82 | E33: 0 | F33: T82 | H33: Y83 | J33: AD84 | L33: AI120 | N33: AN125 | R33: Homegrown Feed Production | T33: Milking Area | W33: Homegrown Feed Production | Y33: Milking Area | AB33: Homegrown Feed Production | AD33: Milking Area | AG33: Net Farm Cash Flow Before Tax and Drawings | AI33: 203063 | AL33: Farm Operating Cash Surplus | AN33: 275306
A34: Total shed costs | B34: 21858 | D34: T83 | E34: 0 | F34: T83 | H34: Y84 | J34: AD85 | L34: AI121 | N34: AN126 | R34: Grazed Feed per Hectare | S34: t DM / ha | T34: 7.737442026 | W34: Grazed Feed per Hectare | X34: t DM / ha | Y34: 8.566870695 | AB34: Grazed Feed per Hectare | AC34: t DM / ha | AD34: 8.113317411 | AG34: Profit | AL34: Finance Costs (Interest & Lease) | AN34: 91921
A35: Concentrate 1 | B35: 1167.494444 | D35: T47 | E35: 0 | F35: T47 | H35: Y47 | J35: AD47 | L35: AI83 | N35: AN88 | R35: Conserved Feed per Hectare | S35: t DM / ha | T35: 2.727272727 | W35: Conserved Feed per Hectare | X35: t DM / ha | Y35: 1 | AB35: Conserved Feed per Hectare | AC35: t DM / ha | AD35: 1 | AG35: Total Farm Gross Income | AI35: 779756 | AL35: Net Farm Cash Flow Before Tax and Drawings | AN35: -66615
A36: Concentrate 2 | R36: Total Homegrown Feed | S36: t DM / ha | T36: 10.46471475 | W36: Total Homegrown Feed | X36: t DM / ha | Y36: 9.566870695 | AB36: Total Homegrown Feed | AC36: t DM / ha | AD36: 9.113317411 | AG36: Total Variable Costs | AI36: 392693 | AL36: Profit
A37: Concentrate 3 | R37: Grazed and Supplementary Feed (Milking Area) | T37: Quantity | W37: Grazed and Supplementary Feed (Milking Area) | Y37: Quantity | AB37: Grazed and Supplementary Feed (Milking Area) | AD37: Quantity | AG37: Total Overhead Costs | AI37: 272252.6098 | AL37: Total Farm Gross Income | AN37: 667854
A38: Purchased fodder 1 | B38: =IF(E38=0,INDIRECT(D38),SUM(INDIRECT(D38),INDIRECT(E38))) ->  | D38: =OFFSET(D38,0,$B$1*2) -> 0 | E38: =OFFSET(E38,0,$B$1*2) -> 0 | H38: Y48 | J38: AD48 | L38: AI84 | N38: AN89 | R38: Grazed Feed Fed | S38: t DM | T38: 851.1186228 | W38: Grazed Feed Fed | X38: t DM | Y38: 856.6870695 | AB38: Grazed Feed Fed | AC38: t DM | AD38: 811.3317411 | AG38: Cost of Production (includes inventory changes) | AI38: 664945.6098 | AL38: Total Variable Costs | AN38: 235781
A39: Purchased fodder 2 | R39: Fodder Fed | S39: t DM | T39: 180 | W39: Fodder Fed | X39: t DM | Y39: 455 | AB39: Fodder Fed | AC39: t DM | AD39: 275 | AG39: Total Costs | AI39: 664945.6098 | AL39: Total Overhead Costs | AN39: 263827.4602
A40: Other puchased feeds | R40: Concentrates & Other Fed | S40: t DM | T40: 312 | W40: Concentrates & Other Fed | X40: t DM | Y40: 600 | AB40: Concentrates & Other Fed | AC40: t DM | AD40: 494 | AG40: Earnings Before Interest and Tax (EBIT) | AI40: 114810.3902 | AL40: Cost of Production (includes inventory changes) | AN40: 513208.4602
A41: Agistment | B41: =IF(E41=0,INDIRECT(D41),SUM(INDIRECT(D41),INDIRECT(E41))) -> 18000 | D41: =OFFSET(D41,0,$B$1*2) -> T86 | E41: 0 | F41: T86 | H41: Y87 | J41: AD88 | L41: AI124 | N41: AN129 | R41: Total Feed Fed | S41: t DM | T41: 1343.118623 | W41: Total Feed Fed | X41: t DM | Y41: 1911.687069 | AB41: Total Feed Fed | AC41: t DM | AD41: 1580.331741 | AG41: Finance Costs (Interest & Lease) | AI41: 50000 | AL41: Total Costs | AN41: 499608.4602
A42: Other feed costs | B42: =IF(E42=0,INDIRECT(D42),SUM(INDIRECT(D42),INDIRECT(E42))) -> 0 | D42: =OFFSET(D42,0,$B$1*2) -> T91 | E42: =OFFSET(E42,0,$B$1*2) -> 0 | F42: T91 | H42: Y92 | J42: AD94 | L42: AI130 | N42: AN135 | R42: [1] % of Cow Diet is based on the % of Feed Energy Fed | W42: [1] % of Cow Diet is based on the % of Feed Energy Fed | AB42: [1] % of Cow Diet is based on the % of Feed Energy Fed | AG42: Net Farm Income | AI42: 64810.39024 | AL42: Earnings Before Interest and Tax (EBIT) | AN42: 168245.5398
A43: Total purchased feed costs | B43: =IF(E43=0,INDIRECT(D43)+B42+B41,) -> 247595 | D43: T84 | E43: 0 | F43: T84 | H43: Y85 | J43: AD86 | L43: AI122 | N43: AN127 | R43: Feed Costs | W43: Feed Costs | AB43: Feed Costs | AG43: Wealth | AL43: Finance Costs (Interest & Lease) | AN43: 91921
A44: Hay and silage making | B44: =IF(E44=0,INDIRECT(D44),SUM(INDIRECT(D44),INDIRECT(E44))) -> 18545 | D44: T85 | E44: 0 | F44: T85 | H44: Y86 | J44: AD87 | L44: AI123 | N44: AN128 | R44: Homegrown Feed - Direct Costs | S44: $ / t DM | T44: 72.65832189 | W44: Homegrown Feed - Direct Costs | X44: $ / t DM | Y44: 101.2843411 | AB44: Homegrown Feed - Direct Costs | AC44: $ / t DM | AD44: 93.65126909 | AG44: Return on Total Assets (ROTA) | AI44: 0.04193220973 | AL44: Net Farm Income | AN44: 76324.5398
A45: PKS Fertiliser | R45: Grazed Feed - Direct Costs | S45: $ / t DM | T45: 59.86556226 | W45: Grazed Feed - Direct Costs | X45: $ / t DM | Y45: 79.69271802 | AB45: Grazed Feed - Direct Costs | AC45: $ / t DM | AD45: 71.63921866 | AG45: Equity as % of Owned Assets | AI45: 0.634769905 | AL45: Wealth
A46: Nitrogen | B46: =IF(E46=0,INDIRECT(D46),SUM(INDIRECT(D46),INDIRECT(E46))) -> 32910 | D46: =OFFSET(D46,0,$B$1*2) -> T87 | E46: =OFFSET(E46,0,$B$1*2) -> 0 | F46: T87 | H46: Y88 | J46: AD89 | L46: AI125 | N46: AN130 | R46: Conserved Feed - Direct Costs | S46: $ / t DM | T46: 93.58374408 | W46: Conserved Feed - Direct Costs | X46: $ / t DM | Y46: 158.2641466 | AB46: Conserved Feed - Direct Costs | AC46: $ / t DM | AD46: 150.2106472 | AG46: Return on Equity (ROE) | AI46: 0.03729021302 | AL46: Return on Total Assets (ROTA) | AN46: 0.03479827578
A47: Lime & Gypsum | R47: Concentrate Purchased - Direct Costs | S47: $ / t DM | T47: 1167.494444 | W47: Concentrate Purchased - Direct Costs | X47: $ / t DM | Y47: 400 | AB47: Concentrate Purchased - Direct Costs | AC47: $ / t DM | AD47: 400 | AG47: Change in Net Worth | AI47: 0 | AL47: Equity as % of Owned Assets | AN47: 0.8054607473
A48: Irrigation | B48: =IF(E48=0,INDIRECT(D48),SUM(INDIRECT(D48),INDIRECT(E48))) -> 30687 | D48: =OFFSET(D48,0,$B$1*2) -> T88 | E48: 0 | F48: T88 | H48: Y89 | J48: AD90 | K48: AD91 | L48: AI126 | M48: AI127 | N48: AN131 | O48: AN132 | R48: Fertiliser Application | W48: Fodder Purchased - Direct Costs | X48: $ / t DM | Y48: 233.5714286 | AB48: Fodder Purchased - Direct Costs | AC48: $ / t DM | AD48: 150 | AL48: Return on Equity (ROE) | AN48: 0.02487186466
A49: Pasture and cropping | B49: 13593 | D49: T89 | E49: 0 | F49: T89 | H49: Y90 | J49: AD92 | L49: AI128 | N49: AN133 | R49: Nitrogen Applied | S49: kgs N / Milking ha | T49: 83.63636364 | W49: Fertiliser Application | AB49: Fertiliser Application | AG49: Physical Report | AL49: Change in Net Worth | AN49: -12320
A50: Fuel and oil | B50: 9594 | D50: T90 | E50: 0 | F50: T90 | H50: Y91 | J50: AD93 | L50: AI129 | N50: AN134 | R50: Nitrogen Applied | S50: kgs N / Usable ha | T50: 83.94160584 | W50: Nitrogen Applied | X50: kgs N / Milking ha | Y50: 276 | AB50: Nitrogen Applied | AC50: kgs N / Milking ha | AD50: 230 | AG50: Farm Area
A51: Total home grown feed costs | B51: =IF(E51=0,INDIRECT(D51)-B43,SUM(INDIRECT(D51),INDIRECT(E51))) -> 105329 | D51: T92 | E51: 0 | F51: T92 | H51: Y93 | J51: AD95 | L51: AI131 | N51: AN136 | R51: Labour and Management | W51: Nitrogen Applied | X51: kgs N / Usable ha | Y51: 276 | AB51: Nitrogen Applied | AC51: kgs N / Usable ha | AD51: 214.6666667 | AG51: Usable Area | AH51: ha | AI51: 150 | AL51: Physical Report
A52: VARIABLE COSTS | B52: 396781 | D52: T93 | E52: 0 | F52: T93 | H52: Y94 | J52: AD96 | L52: AI132 | N52: AN137 | R52: Employed Labour | S52: FTE | T52: 1 | W52: Labour and Management | AB52: Labour and Management | AG52: Milking Area | AH52: ha | AI52: 100 | AL52: Farm Area
R53: Imputed Labour | S53: FTE | T53: 3 | W53: Employed Labour | X53: FTE | Y53: 1.4 | AB53: Employed Labour | AC53: FTE | AD53: 1 | AG53: Leased Area | AH53: ha | AI53: 0 | AL53: Usable Area | AM53: ha | AN53: 137
A54: Employed labour costs | B54: =IF(E54=0,INDIRECT(D54),SUM(INDIRECT(D54),INDIRECT(E54))) -> 90000 | D54: =OFFSET(D54,0,$B$1*2) -> T95 | E54: 0 | F54: T95 | H54: Y96 | J54: AD98 | L54: AI134 | N54: AN139 | R54: Cows Milked per Labour Unit | S54: Cows / FTE | T54: 65 | W54: Imputed Labour | X54: FTE | Y54: 1.59 | AB54: Imputed Labour | AC54: FTE | AD54: 1.59 | AG54: Irrigated Area | AH54: ha | AI54: 0 | AL54: Milking Area | AM54: ha | AN54: 110
A55: Repairs and maintenance | B55: 20610 | D55: T96 | E55: 0 | F55: T96 | H55: Y97 | J55: AD99 | L55: AI135 | N55: AN141 | R55: Milksolids per Labour Unit | S55: kg MS / FTE | T55: 30130.5 | W55: Cows Milked per Labour Unit | X55: Cows / FTE | Y55: 100.3344482 | AB55: Cows Milked per Labour Unit | AC55: Cows / FTE | AD55: 100.3861004 | AG55: Livestock | AL55: Leased Area | AM55: ha | AN55: 72
A56: Vehicles (Rego and insurance) | R56: Rainfall and Irrigation | W56: Milksolids per Labour Unit | X56: kg MS / FTE | Y56: 52675.58528 | AB56: Milksolids per Labour Unit | AC56: kg MS / FTE | AD56: 51196.9112 | AG56: Cows Milked | AH56: Number | AI56: 260 | AL56: Irrigated Area | AM56: ha | AN56: 10
A57: Farm insurance | D57: =OFFSET(D57,0,$B$1*2) -> 0 | E57: 0 | N57: AN140 | R57: Area of Farm Irrigated | S57: ha | T57: 10 | W57: Rainfall and Irrigation | AB57: Rainfall and Irrigation | AG57: Annual Stocking Rate | AH57: Milking cows / Milking ha | AI57: 2.6 | AL57: Livestock
A58: Other overheads (Rates/insurance/etc) | B58: =IF(E58=0,INDIRECT(D58),SUM(INDIRECT(D58),INDIRECT(E58))) -> 20857 | D58: T97 | E58: 0 | F58: T97 | H58: Y98 | J58: AD100 | L58: AI136 | N58: AN142 | R58: Annual Water Use | S58: Megalitres | T58: 400 | W58: Area of Farm Irrigated | X58: ha | Y58: 0 | AB58: Area of Farm Irrigated | AC58: ha | AD58: 0 | AG58: Annual Stocking Rate | AH58: Milking cows / Usable ha | AI58: 1.733333333 | AL58: Cows Milked | AM58: Number | AN58: 177.9166667
A59: OVERHEAD COSTS | B59: 131467 | D59: T98 | E59: 0 | F59: T98 | H59: Y99 | J59: AD101 | L59: AI137 | N59: AN143 | R59: ML Irrigation/ Irrigated ha | S59: Megalitres / Irrigated ha | T59: 40 | W59: Annual Water Use | X59: Megalitres | Y59: 0 | AB59: Annual Water Use | AC59: Megalitres | AD59: 0 | AG59: Cow Liveweight | AH59: kgs | AI59: 550 | AL59: Annual Stocking Rate | AM59: Milking cows / Milking ha | AN59: 1.617424242
R60: Annual Rainfall | S60: mm / annum | T60: 650 | W60: ML Irrigation/ Irrigated ha | X60: Megalitres / Irrigated ha | Y60: 0 | AB60: ML Irrigation/ Irrigated ha | AC60: Megalitres / Irrigated ha | AD60: 0 | AG60: Cow Liveweight per Hectare | AH60: kgs / Milking ha | AI60: 1430 | AL60: Annual Stocking Rate | AM60: Milking cows / Usable ha | AN60: 1.2986618
A61: FARM WORKING EXPENSES (FWE) (Variable plus Cash Overhead Costs) | B61: =IF(E61=0,INDIRECT(D61),SUM(INDIRECT(D61),INDIRECT(E61))) -> 528248 | D61: =OFFSET(D61,0,$B$1*2) -> T99 | E61: =OFFSET(E61,0,$B$1*2) -> 0 | F61: T99 | H61: Y100 | J61: AD102 | L61: AI138 | N61: AN144 | R61: Total Water Use / Irrigated ha | S61: mm / Iirrigated ha | T61: 4650 | W61: Annual Rainfall | X61: mm / annum | Y61: 900 | AB61: Annual Rainfall | AC61: mm / annum | AD61: 900 | AG61: Milk Production | AI61: Quantity | AL61: Cow Liveweight | AM61: kgs | AN61: 520
R62: Homegrown Feed / 100 mm / Usable ha | S62: t DM/ 100 mm / Usable ha | T62: 1.123322839 | W62: Total Water Use / Irrigated ha | X62: mm / Iirrigated ha | Y62: 0 | AB62: Total Water Use / Irrigated ha | AC62: mm / Iirrigated ha | AD62: 0 | AG62: Litres | AH62: Litres | AI62: 1768000 | AL62: Cow Liveweight per Hectare | AM62: kgs / Milking ha | AN62: 841.0606061
A63: FARM OPERATING CASH SURPLUS (Total Cash Income minus Farm Working Expenses) | B63: =IF(E63=0,INDIRECT(D63),SUM(INDIRECT(D63),INDIRECT(E63))) -> 374206 | D63: =OFFSET(D63,0,$B$1*2) -> T100 | E63: =OFFSET(E63,0,$B$1*2) -> 0 | F63: T100 | H63: Y101 | J63: AD103 | L63: AI139 | N63: AN145 | R63: Water Use Efficiency | S63: t DM / Megalitre | T63: 3.624120309 | W63: Homegrown Feed / 100 mm / Usable ha | X63: t DM/ 100 mm / Usable ha | Y63: 0.9434385857 | AB63: Homegrown Feed / 100 mm / Usable ha | AC63: t DM/ 100 mm / Usable ha | AD63: 0.9254190307 | AG63: Fat | AH63: kg | AI63: 76024 | AL63: Milk Production | AN63: Quantity
W64: Water Use Efficiency | X64: t DM / Megalitre | AB64: Water Use Efficiency | AC64: t DM / Megalitre | AG64: Protein | AH64: kg | AI64: 56576 | AL64: Litres | AM64: Litres | AN64: 1504062
A65: Interest loan 1 | B65: =IF(E65=0,INDIRECT(D65),SUM(INDIRECT(D65),INDIRECT(E65))) -> 35687 | D65: =OFFSET(D65,0,$B$1*2) -> T147 | E65: =OFFSET(E65,0,$B$1*2) -> 0 | F65: T147 | H65: Y147 | J65: AD149 | L65: AI185 | N65: AN193 | R65: Cash Report | AG65: Milksolids | AH65: kg | AI65: 132600 | AL65: Fat | AM65: kg | AN65: 68264
A66: Interest loan 2 | W66: Cash Report | AB66: Cash Report | AG66: Fat % | AH66: % w/v | AI66: 0.043 | AL66: Protein | AM66: kg | AN66: 52258
A67: Interest loan 3 | T67: Total | AG67: Protein % | AH67: % w/v | AI67: 0.032 | AL67: Milksolids | AM67: kg | AN67: 120522
A68: Hire purchases | R68: Farm Cash Income | T68: ($) | Y68: Total | AD68: Total | AG68: Milksolids as % of Cow Liveweight | AH68: kg MS / Cow Liveweight | AI68: 0.9272727273 | AL68: Fat % | AM68: % w/v | AN68: 0.0454
A69: Leases | B69: =IF(E69=0,INDIRECT(D69),SUM(INDIRECT(D69),INDIRECT(E69))) -> 56234 | D69: =OFFSET(D69,0,$B$1*2) -> T148 | E69: 0 | F69: T148 | H69: Y148 | J69: AD150 | L69: AI186 | N69: AN194 | R69: Milk Income (net) | T69: 846454 | W69: Farm Cash Income | Y69: ($) | AB69: Farm Cash Income | AD69: ($) | AG69: Homegrown Feed Production | AI69: Milking Area | AL69: Protein % | AM69: % w/v | AN69: 0.0347
A70: Finance costs | B70: =IF(E70=0,INDIRECT(D70),SUM(INDIRECT(D70),INDIRECT(E70))) -> 91921 | D70: T104 | E70: 0 | F70: T104 | H70: Y105 | J70: AD151 | L70: AI187 | N70: AN195 | R70: Livestock sales | T70: 45000 | W70: Milk Income (net) | Y70: 875700 | AB70: Milk Income (net) | AD70: 737256 | AG70: Grazed Feed per Hectare | AH70: t DM / ha | AI70: 8.113317411 | AL70: Milksolids as % of Cow Liveweight | AM70: kg MS / Cow Liveweight | AN70: 1.302705819
A71: Principal repayments loan 1 | B71: =IF(E71=0,INDIRECT(D71),SUM(INDIRECT(D71),INDIRECT(E71))) -> 150000 | D71: T108 | E71: 0 | F71: T108 | H71: Y108 | J71: AD110 | L71: AI146 | N71: AN152 | R71: Feed Sales | T71: 0 | V71: 37500 | W71: Livestock sales - purchases | Y71: 37500 | AA71: 32500 | AB71: Livestock sales - purchases | AD71: 32500 | AG71: Conserved Feed per Hectare | AH71: t DM / ha | AI71: 1 | AL71: Homegrown Feed Production | AN71: Milking Area
A72: Principal repayments loan 2 | R72: Other Farm Cash Income | T72: 11000 | W72: Feed Sales | Y72: 0 | AB72: Feed Sales | AD72: 0 | AG72: Total Homegrown Feed | AH72: t DM / ha | AI72: 9.113317411 | AL72: Grazed Feed per Hectare | AM72: t DM / ha | AN72: 6.869934073
A73: Principal repayments loan 3 | R73: Total Farm Cash Income | T73: 902454 | W73: Other Farm Cash Income | Y73: 10000 | AB73: Water Sales | AD73: 0 | AG73: Grazed and Supplementary Feed (Milking Area) | AI73: Quantity | AL73: Conserved Feed per Hectare | AM73: t DM / ha | AN73: 2.727272727
A74: Livestock purchases | R74: Variable Costs | W74: Total Farm Cash Income | Y74: 923200 | AB74: Other Farm Cash Income | AD74: 10000 | AG74: Grazed Feed Fed | AH74: t DM | AI74: 811.3317411 | AL74: Total Homegrown Feed | AM74: t DM / ha | AN74: 9.5972068
A75: Other capital purchases | B75: =IF(E75=0,INDIRECT(D75),SUM(INDIRECT(D75),INDIRECT(E75))) -> 25000 | D75: =OFFSET(D75,0,$B$1*2) -> T107 | E75: =OFFSET(E75,0,$B$1*2) -> 0 | F75: T107 | H75: Y107 | J75: AD109 | L75: AI145 | N75: AN151 | R75: AI & Herd Test | T75: 11066 | W75: Variable Costs | AB75: Total Farm Cash Income | AD75: 779756 | AG75: Fodder Fed | AH75: t DM | AI75: 275 | AL75: Grazed and Supplementary Feed (Milking Area) | AN75: Quantity
A76: Capital sales/Farm man.deposits | R76: Animal Health | T76: 16687 | W76: AI & Herd Test | Y76: 18000 | AB76: Variable Costs | AG76: Concentrates & Other Fed | AH76: t DM | AI76: 494 | AL76: Grazed Feed Fed | AM76: t DM | AN76: 755.692748
A77: Unpaid bills (60+ days) | R77: Calf Rearing | T77: 3146 | W77: Animal Health | Y77: 19500 | AB77: AI & Herd Test | AD77: 15600 | AG77: Total Feed Fed | AH77: t DM | AI77: 1580.331741 | AL77: Homegrown Fodder Fed | AM77: t DM
A78: Capital Transactions | B78: =IF(E78=0,INDIRECT(D78),SUM(INDIRECT(D78),INDIRECT(E78))) -> 275000 | D78: =OFFSET(D78,0,$B$1*2) -> T109 | E78: =OFFSET(E78,0,$B$1*2) -> 0 | F78: T109 | H78: Y109 | J78: AD111 | L78: AI147 | N78: AN153 | R78: Other Herd Costs | T78: 0 | W78: Calf Rearing | Y78: 7500 | AB78: Animal Health | AD78: 16900 | AG78: [1] % of Diet is based on the % of Feed Energy Fed | AL78: Purchased Fodder Fed | AM78: t DM
R79: Total Herd Costs | T79: 30899 | W79: Other Herd Costs | Y79: 0 | AB79: Calf Rearing | AD79: 6500 | AG79: Feed Costs | AL79: Homegrown Concentrate Fed | AM79: t DM
A80: NET FARM CASH FLOW | B80: =IF(E80=0,INDIRECT(D80),SUM(INDIRECT(D80),INDIRECT(E80))) -> -39744 | D80: =OFFSET(D80,0,$B$1*2) -> T114 | E80: 0 | F80: T114 | H80: Y114 | J80: AD116 | L80: AI152 | N80: AN158 | R80: Shed Power | T80: 12000 | W80: Total Herd Costs | Y80: 45000 | AB80: Other Herd Costs | AD80: 0 | AG80: Homegrown Feed - Direct Costs | AH80: $ / t DM | AI80: 93.65126909 | AL80: Purchased Concentrate Fed | AM80: t DM
A81: Non farm income | B81: =IF(E81=0,INDIRECT(D81),SUM(INDIRECT(D81),INDIRECT(E81))) -> 2971 | D81: T112 | E81: 0 | F81: T112 | H81: Y112 | J81: AD114 | L81: AI150 | N81: AN156 | R81: Dairy Supplies | T81: 9858 | W81: Shed Power | Y81: 17000 | AB81: Total Herd Costs | AD81: 39000 | AG81: Grazed Feed - Direct Costs | AH81: $ / t DM | AI81: 71.63921866 | AL81: Other Feed Fed | AM81: t DM
A82: Non farm expenses/drawings | B82: 50000 | D82: T113 | E82: 0 | F82: T113 | H82: Y113 | J82: AD115 | L82: AI151 | N82: AN157 | R82: Other Shed Coss | T82: 0 | W82: Dairy Supplies | Y82: 10800 | AB82: Shed Power | AD82: 14733 | AG82: Conserved Feed - Direct Costs | AH82: $ / t DM | AI82: 150.2106472 | AL82: Total Feed Fed | AM82: t DM | AN82: 1247.692748
A83: GST (Estimate) | R83: Total Shed Costs | T83: 21858 | W83: Other Shed Coss | Y83: 0 | AB83: Dairy Supplies | AD83: 9360 | AG83: Concentrate Purchased - Direct Costs | AH83: $ / t DM | AI83: 400 | AL83: [1] % of Diet is based on the % of Feed Energy Fed
A84: Tax (PAYG) | R84: Feeds Purchased | S84: 19446 | T84: 229595 | W84: Total Shed Costs | Y84: 27800 | AB84: Other Shed Coss | AD84: 0 | AG84: Fodder Purchased - Direct Costs | AH84: $ / t DM | AI84: 150 | AL84: Feed Costs
A85: Net Non Farm Income and Tax | B85: =B81-B82 -> -47029 | R85: Hay & Silage Making | S85: 210149 | T85: 18545 | W85: Feeds Purchased | X85: 65400 | Y85: 305400 | AB85: Total Shed Costs | AD85: 24093 | AG85: Fertiliser Application | AL85: Homegrown Feed - Direct Costs | AM85: $ / t DM | AN85: 60.32722342
R86: Agistment | S86: 0 | T86: 18000 | W86: Hay & Silage Making | X86: 240000 | Y86: 27500 | AB86: Feeds Purchased | AC86: 15000 | AD86: 212600 | AG86: Nitrogen Applied | AH86: kgs N / Milking ha | AI86: 230 | AL86: Grazed Feed - Direct Costs | AM86: $ / t DM | AN86: 54.14094825
A87: Net monthly cash flow total | B87: =B80+B85 -> -86773 | R87: Fertiliser | T87: 32910 | W87: Agistment | X87: 0 | Y87: 12000 | AB87: Hay & Silage Making | AC87: 197600 | AD87: 27500 | AG87: Nitrogen Applied | AH87: kgs N / Usable ha | AI87: 214.6666667 | AL87: Conserved Feed - Direct Costs | AM87: $ / t DM | AN87: 69.67731188
R88: Irrigation | T88: 30687 | W88: Fertiliser | Y88: 79000 | AB88: Agistment | AC88: 0 | AD88: 0 | AG88: Labour and Management | AL88: Concentrate Purchased - Direct Costs | AM88: $ / t DM | AN88: 611.9388889
A89: Cumulative cash flow | R89: Pasture & Crop Costs | T89: 13593 | W89: Irrigation | Y89: 0 | AB89: Fertiliser | AD89: 67000 | AG89: Employed Labour | AH89: FTE | AI89: 1 | AL89: Fodder Purchased - Direct Costs | AM89: $ / t DM | AN89: 0
R90: Fuel & Oil | T90: 9594 | W90: Pasture & Crop Costs | Y90: 9000 | AB90: Water Purchase | AC90: 0 | AD90: 0 | AG90: Imputed Labour | AH90: FTE | AI90: 1.59 | AL90: Fertiliser Application
R91: Other Feed Costs | T91: 0 | W91: Fuel & Oil | Y91: 9000 | AB91: Other Irrigation Costs | AD91: 0 | AG91: Cows Milked per Labour Unit | AH91: Cows / FTE | AI91: 100.3861004 | AL91: Nitrogen Applied | AM91: kgs N / Milking ha | AN91: 83.63636364
R92: Total Feed Costs | T92: 352924 | W92: Other Feed Costs | Y92: 4500 | AB92: Pasture & Crop Costs | AD92: 9000 | AG92: Milksolids per Labour Unit | AH92: kg MS / FTE | AI92: 51196.9112 | AL92: Nitrogen Applied | AM92: kgs N / Usable ha | AN92: 83.94160584
R93: Total Variable Costs | T93: 396781 | W93: Total Feed Costs | Y93: 446400 | AB93: Fuel & Oil | AD93: 9000 | AG93: Rainfall and Irrigation | AL93: Labour and Management
R94: Cash Overheads | W94: Total Variable Costs | Y94: 519200 | AB94: Other Feed Costs | AD94: 4500 | AG94: Area of Farm Irrigated | AH94: ha | AI94: 0 | AL94: Employed Labour | AM94: FTE | AN94: 1.5
R95: Employed Labour Cost | S95: 3113 | T95: 90000 | W95: Cash Overheads | AB95: Total Feed Costs | AD95: 329600 | AG95: Annual Water Use | AH95: Megalitres | AI95: 0 | AL95: Imputed Labour | AM95: FTE | AN95: 1.2
R96: Repairs & Maintenance | S96: 8808 | T96: 20610 | W96: Employed Labour Cost | X96: 8000 | Y96: 70000 | AB96: Total Variable Costs | AD96: 392693 | AG96: ML Irrigation/ Irrigated ha | AH96: Megalitres / Irrigated ha | AI96: 0 | AL96: Cows Milked per Labour Unit | AM96: Cows / FTE | AN96: 65.89506173
R97: Other Overhead Costs | S97: 8936 | T97: 20857 | W97: Repairs & Maintenance | X97: 6000 | Y97: 45000 | AB97: Cash Overheads | AG97: Annual Rainfall | AH97: mm / annum | AI97: 900 | AL97: Milksolids per Labour Unit | AM97: kg MS / FTE | AN97: 44637.77778
R98: Total Cash Overhead Costs | T98: 131467 | W98: Other Overhead Costs | X98: 21000 | Y98: 35000 | AB98: Employed Labour Cost | AC98: 8000 | AD98: 50000 | AG98: Total Water Use / Irrigated ha | AH98: mm / Iirrigated ha | AI98: 0 | AL98: Rainfall and Irrigation
R99: TOTAL FARM WORKING EXPENSES | T99: 528248 | W99: Total Cash Overhead Costs | Y99: 150000 | AB99: Repairs & Maintenance | AC99: 6000 | AD99: 39000 | AG99: Homegrown Feed / 100 mm / Usable ha | AH99: t DM/ 100 mm / Usable ha | AI99: 0.9254190307 | AL99: Area of Farm Irrigated | AM99: ha | AN99: 10
R100: FARM OPERATING CASH SURPLUS | T100: 374206 | W100: TOTAL FARM WORKING EXPENSES | Y100: 669200 | AB100: Other Overhead Costs | AC100: 21000 | AD100: 35000 | AG100: Water Use Efficiency | AH100: t DM / Megalitre | AL100: Annual Water Use | AM100: Megalitres | AN100: 400
R101: Finance Costs | W101: FARM OPERATING CASH SURPLUS | Y101: 254000 | AB101: Total Cash Overhead Costs | AD101: 124000 | AL101: ML Irrigation/ Irrigated ha | AM101: Megalitres / Irrigated ha | AN101: 40
R102: Interest Costs | T102: 35687 | W102: Finance Costs | AB102: TOTAL FARM WORKING EXPENSES | AD102: 516693 | AG102: Cash Report | AL102: Annual Rainfall | AM102: mm / annum | AN102: 650
R103: Lease Costs | T103: 56234 | W103: Interest Costs | Y103: 50000 | AB103: FARM OPERATING CASH SURPLUS | AD103: 263063 | AL103: Total Water Use / Irrigated ha | AM103: mm / Iirrigated ha | AN103: 4650
R104: Total Finance Costs | T104: 91921 | W104: Lease Costs | Y104: 0 | AB104: Finance Costs | AI104: Total | AL104: Total Water Use Efficiency | AM104: t DM/ 100 mm / Usable ha | AN104: 1.070347561
R105: Capital and Principal Costs | W105: Total Finance Costs | Y105: 50000 | AB105: Interest Costs | AD105: 50000 | AG105: Farm Cash Income | AI105: ($) | AL105: Irrigation Water Use Efficiency | AM105: t DM / Megalitre | AN105: 3.45320882
R106: Livestock Purchases | T106: 100000 | V106: 0 | W106: Capital and Principal Costs | AB106: Lease Costs | AD106: 0 | AG106: Milk Income (net) | AI106: 737256
R107: Other Capital Purchases | T107: 25000 | W107: Other Capital Purchases | Y107: 0 | AB107: Total Finance Costs | AD107: 50000 | AF107: 32500 | AG107: Livestock sales - purchases | AI107: 32500 | AL107: Cash Report
R108: Loan Principal Repayments | T108: 150000 | W108: Loan Principal Repayments | Y108: 10000 | AA108: 0 | AB108: Capital and Principal Costs | AG108: Feed Sales | AI108: 0
R109: Total Capital and Principal Costs | T109: 275000 | W109: Total Capital and Principal Costs | Y109: 10000 | AB109: Other Capital Purchases | AD109: 0 | AG109: Water Sales | AI109: 0 | AN109: Total
R110: NET FARM CASH FLOW BEFORE TAX AND DRAWINGS | T110: 7285 | W110: NET FARM CASH FLOW BEFORE TAX AND DRAWINGS | Y110: 194000 | AB110: Loan Principal Repayments | AD110: 10000 | AG110: Other Farm Cash Income | AI110: 10000 | AL110: Farm Cash Income | AN110: ($)
R111: Other Cash Items | W111: Other Cash Items | AB111: Total Capital and Principal Costs | AD111: 10000 | AG111: Total Farm Cash Income | AI111: 779756 | AL111: Milk Income (net) | AN111: 636454
R112: Net Non Farm Cash Income | T112: 2971 | W112: Net Non Farm Cash Income | Y112: 0 | AB112: NET FARM CASH FLOW BEFORE TAX AND DRAWINGS | AD112: 203063 | AG112: Variable Costs | AK112: 45000 | AL112: Livestock sales - purchases | AN112: 35000
R113: Drawings | T113: 50000 | W113: Drawings | Y113: 60000 | AB113: Other Cash Items | AG113: AI & Herd Test | AI113: 15600 | AL113: Feed Sales | AN113: 0
R114: NET CASH FLOW BEFORE TAX | T114: -39744 | W114: NET CASH FLOW BEFORE TAX | Y114: 134000 | AB114: Net Non Farm Cash Income | AD114: 0 | AG114: Animal Health | AI114: 16900 | AL114: Water Sales | AN114: 0
AB115: Drawings | AD115: 60000 | AG115: Calf Rearing | AI115: 6500 | AL115: Other Farm Cash Income | AN115: 0
R116: Profit Report | W116: Profit Report | AB116: NET CASH FLOW BEFORE TAX | AD116: 143063 | AG116: Other Herd Costs | AI116: 0 | AL116: Total Farm Cash Income | AN116: 671454
T117: Total | Y117: Total | AG117: Total Herd Costs | AI117: 39000 | AL117: Variable Costs
R118: Income | T118: ($) | W118: Income | Y118: ($) | AB118: Profit Report | AG118: Shed Power | AI118: 14733 | AL118: AI & Herd Test | AN118: 9066
R119: Milk Income (net) | T119: 846454 | W119: Milk Income (net) | Y119: 875700 | AD119: Total | AG119: Dairy Supplies | AI119: 9360 | AL119: Animal Health | AN119: 13687
R120: Livestock Trading Profit | T120: 105000 | W120: Livestock Trading Profit | Y120: 37500 | AB120: Income | AD120: ($) | AG120: Other Shed Coss | AI120: 0 | AL120: Calf Rearing | AN120: 3146
R121: Feed Sales | T121: 0 | W121: Feed Sales | Y121: 0 | AB121: Milk Income (net) | AD121: 737256 | AG121: Total Shed Costs | AI121: 24093 | AL121: Other Herd Costs | AN121: 0
R122: Other Farm Income | T122: 11000 | W122: Other Farm Income | Y122: 10000 | AB122: Livestock Trading Profit | AD122: 32500 | AG122: Feeds Purchased | AH122: 15000 | AI122: 212600 | AL122: Total Herd Costs | AN122: 25899
R123: Gross Farm Income | T123: 962454 | W123: Gross Farm Income | Y123: 923200 | AB123: Feed & Water Sales | AD123: 0 | AG123: Hay & Silage Making | AH123: 197600 | AI123: 27500 | AL123: Shed Power | AN123: 9000
R124: Variable Costs | W124: Variable Costs | AB124: Other Farm Income | AD124: 10000 | AG124: Agistment | AH124: 0 | AI124: 0 | AL124: Dairy Supplies | AN124: 6858
R125: Herd Costs | T125: 30899 | W125: Herd Costs | Y125: 45000 | AB125: Gross Farm Income | AD125: 779756 | AG125: Fertiliser | AI125: 67000 | AL125: Other Shed Coss | AN125: 0
R126: Shed Costs | T126: 21858 | W126: Shed Costs | Y126: 27800 | AB126: Variable Costs | AG126: Water Purchase | AH126: 0 | AI126: 0 | AL126: Total Shed Costs | AN126: 15858
R127: Homegrown Feed | T127: 105329 | W127: Homegrown Feed | Y127: 129000 | AB127: Herd Costs | AD127: 39000 | AG127: Other Irrigation Costs | AI127: 0 | AL127: Feeds Purchased | AM127: 9446 | AN127: 119595
R128: Purchased Feed | T128: 247595 | W128: Purchased Feed | Y128: 317400 | AB128: Shed Costs | AD128: 24093 | AG128: Pasture & Crop Costs | AI128: 9000 | AL128: Hay & Silage Making | AM128: 110149 | AN128: 8545
R129: Feed Inventory Change | T129: -8900 | W129: Feed Inventory Change | Y129: 0 | AB129: Homegrown Feed | AD129: 117000 | AG129: Fuel & Oil | AI129: 9000 | AL129: Agistment | AM129: 0 | AN129: 0
R130: Feed Costs | T130: 352924 | W130: Feed Costs | Y130: 446400 | AB130: Purchased Feed | AC130: 0 | AD130: 212600 | AG130: Other Feed Costs | AI130: 4500 | AL130: Fertiliser | AN130: 32910
R131: Total Variable Costs | T131: 396781 | W131: Total Variable Costs | Y131: 519200 | AB131: Feed & Water Inventory Change | AC131: 0 | AD131: 0 | AG131: Total Feed Costs | AI131: 329600 | AL131: Water Purchase | AM131: 30687 | AN131: 30687
R132: GROSS MARGIN | T132: 565673 | W132: GROSS MARGIN | Y132: 404000 | AB132: Feed Costs | AD132: 329600 | AG132: Total Variable Costs | AI132: 392693 | AL132: Other Irrigation Costs | AN132: 0
R133: Overhead Costs | W133: Overhead Costs | AB133: Total Variable Costs | AD133: 392693 | AG133: Cash Overheads | AL133: Pasture & Crop Costs | AN133: 3593
R134: Employed Labour Cost | T134: 90000 | W134: Employed Labour Cost | Y134: 70000 | AB134: GROSS MARGIN | AD134: 387063 | AG134: Employed Labour Cost | AH134: 8000 | AI134: 50000 | AL134: Fuel & Oil | AN134: 7594
R135: Repairs & Maintenance | T135: 20610 | W135: Repairs & Maintenance | Y135: 45000 | AB135: Overhead Costs | AG135: Repairs & Maintenance | AH135: 6000 | AI135: 39000 | AL135: Other Feed Costs | AN135: 0
R136: Other Overhead Costs | T136: 20857 | W136: Other Overhead Costs | Y136: 35000 | AB136: Employed Labour Cost | AD136: 50000 | AG136: Other Overhead Costs | AH136: 21000 | AI136: 35000 | AL136: Total Feed Costs | AN136: 202924
R137: Imputed Labour Cost | T137: 214118.775 | W137: Imputed Labour Cost | Y137: 115752.6098 | AB137: Repairs & Maintenance | AD137: 39000 | AG137: Total Cash Overhead Costs | AI137: 124000 | AL137: Total Variable Costs | AN137: 244681
R138: Depreciation | T138: 15000 | W138: Depreciation | Y138: 37500 | AB138: Other Overhead Costs | AD138: 35000 | AG138: TOTAL FARM WORKING EXPENSES | AI138: 516693 | AL138: Cash Overheads
R139: Total Overhead Costs | T139: 360585.775 | W139: Total Overhead Costs | Y139: 303252.6098 | AB139: Imputed Labour Cost | AD139: 115752.6098 | AG139: FARM OPERATING CASH SURPLUS | AI139: 263063 | AL139: Employed Labour Cost | AM139: 3113 | AN139: 110000
R140: TOTAL OPERATING COST (Variable & Overhead) | T140: 757366.775 | W140: TOTAL OPERATING COST (Variable & Overhead) | Y140: 822452.6098 | AB140: Depreciation | AD140: 32500 | AG140: Finance Costs | AL140: Farm Insurance | AN140: 8808
R141: EARNINGS BEFORE INTEREST & TAX (EBIT) | T141: 205087.225 | W141: EARNINGS BEFORE INTEREST & TAX (EBIT) | Y141: 100747.3902 | AB141: Total Overhead Costs | AD141: 272252.6098 | AG141: Interest Costs | AI141: 50000 | AL141: Repairs & Maintenance | AM141: 0 | AN141: 20610
R142: COST OF PRODUCTION (COP) - EXCLUDING INVENTORY CHANGE | T142: 766266.775 | W142: COST OF PRODUCTION (COP) - EXCLUDING INVENTORY CHANGE | Y142: 822452.6098 | AB142: TOTAL OPERATING COST (Variable & Overhead) | AD142: 664945.6098 | AG142: Lease Costs | AI142: 0 | AL142: Other Overhead Costs | AM142: 8936 | AN142: 12049
R143: Livestock Inventory Change less Purchases | T143: -60000 | W143: Livestock Inventory Change less Purchases | Y143: 0 | AB143: EARNINGS BEFORE INTEREST & TAX (EBIT) | AD143: 114810.3902 | AG143: Total Finance Costs | AI143: 50000 | AL143: Total Cash Overhead Costs | AN143: 151467
R144: Feed Inventory Change | T144: -8900 | W144: Feed Inventory Change | Y144: 0 | AB144: COST OF PRODUCTION (COP) - EXCLUDING INVENTORY CHANGE | AD144: 664945.6098 | AF144: 0 | AG144: Capital and Principal Costs | AL144: TOTAL FARM WORKING EXPENSES | AN144: 396148
R145: COST OF PRODUCTION (COP) - EXCLUDING INVENTORY CHANGE | T145: 697366.775 | W145: COST OF PRODUCTION (COP) - EXCLUDING INVENTORY CHANGE | Y145: 822452.6098 | AB145: Livestock Inventory Change less Purchases | AD145: 0 | AG145: Other Capital Purchases | AI145: 0 | AL145: FARM OPERATING CASH SURPLUS | AN145: 275306
R146: Finance Costs | W146: Finance Costs | AB146: Feed & Water Inventory Change | AD146: 0 | AG146: Loan Principal Repayments | AI146: 10000 | AL146: Finance Costs
R147: Interest Costs | T147: 35687 | W147: Interest Costs | Y147: 50000 | AB147: COST OF PRODUCTION (COP) - EXCLUDING INVENTORY CHANGE | AD147: 664945.6098 | AG147: Total Capital and Principal Costs | AI147: 10000 | AL147: Interest Costs | AN147: 35687
R148: Lease Costs | T148: 56234 | W148: Lease Costs | Y148: 0 | AB148: Finance Costs | AG148: NET FARM CASH FLOW BEFORE TAX AND DRAWINGS | AI148: 203063 | AL148: Lease Costs | AN148: 56234
R149: Total Finance Costs | T149: 91921 | W149: Total Finance Costs | Y149: 50000 | AB149: Interest Costs | AD149: 50000 | AG149: Other Cash Items | AL149: Total Finance Costs | AN149: 91921
R150: NET FARM INCOME | T150: 113166.225 | W150: NET FARM INCOME | Y150: 50747.39024 | AB150: Lease Costs | AD150: 0 | AG150: Net Non Farm Cash Income | AI150: 0 | AK150: 10000 | AL150: Capital and Principal Costs
AB151: Total Finance Costs | AD151: 50000 | AG151: Drawings | AI151: 60000 | AL151: Other Capital Purchases | AN151: 250000
R152: Wealth Report | W152: Wealth Report | AB152: NET FARM INCOME | AD152: 64810.39024 | AG152: NET CASH FLOW BEFORE TAX | AI152: 143063 | AL152: Loan Principal Repayments | AN152: 0
T153: ($) | Y153: ($) | AL153: Total Capital and Principal Costs | AN153: 250000
R154: Assets | W154: Assets | AB154: Wealth Report | AG154: Profit Report | AL154: NET FARM CASH FLOW BEFORE TAX AND DRAWINGS | AN154: -66615
R155: Feed Inventory | T155: 33900 | W155: Feed Inventory | Y155: 35000 | AD155: ($) | AI155: Total | AL155: Other Cash Items
R156: Other Current Assets | T156: 21000 | W156: Other Current Assets | Y156: 0 | AB156: Assets | AG156: Income | AI156: ($) | AL156: Net Non Farm Cash Income | AN156: 2971
R157: Farm Management Deposits | T157: 265000 | W157: Farm Management Deposits | Y157: 0 | AB157: Feed Inventory | AD157: 35000 | AG157: Milk Income (net) | AI157: 737256 | AL157: Drawings | AN157: 50000
R158: Total Current Assets | T158: 319900 | W158: Total Current Assets | Y158: 35000 | AB158: Carryover Water | AD158: 0 | AG158: Livestock Trading Profit | AI158: 32500 | AL158: NET CASH FLOW BEFORE TAX | AN158: -113644
R159: Land & Water | S159: 1700000 | T159: 1800000 | W159: Land & Water | X159: 2000000 | Y159: 2000000 | AB159: Other Current Assets | AD159: 0 | AG159: Feed & Water Sales | AI159: 0
R160: Livestock | S160: 100000 | T160: 597200 | W160: Livestock | X160: 0 | Y160: 525000 | AB160: Farm Management Deposits | AD160: 0 | AG160: Other Farm Income | AI160: 10000 | AL160: Profit Report
R161: Plant & Equipment | T161: 150000 | W161: Plant & Equipment | Y161: 250000 | AB161: Total Current Assets | AD161: 35000 | AG161: Gross Farm Income | AI161: 779756 | AN161: Total
R162: Factory Shares | T162: 73481.5 | W162: Factory Shares | Y162: 0 | AB162: Land & Water | AC162: 2000000 | AD162: 2000000 | AG162: Variable Costs | AL162: Income | AN162: ($)
R163: Other Farm Assets | T163: 32500 | W163: Other Farm Assets | Y163: 0 | AB163: Livestock | AC163: 0 | AD163: 453000 | AG163: Herd Costs | AI163: 39000 | AL163: Milk Income (net) | AN163: 636454
R164: Total Non-Current Assets | T164: 2653181.5 | W164: Total Non-Current Assets | Y164: 2775000 | AB164: Plant & Equipment | AD164: 250000 | AG164: Shed Costs | AI164: 24093 | AL164: Livestock Trading Profit | AN164: 31400
R165: Total Farm Assets Owned | T165: 2973081.5 | W165: Total Farm Assets Owned | Y165: 2810000 | AB165: Factory Shares | AD165: 0 | AG165: Homegrown Feed | AI165: 117000 | AL165: Feed & Water Sales | AN165: 0
R166: RETURN ON ASSETS | T166: 0.05006698437 | W166: RETURN ON ASSETS | Y166: 0.03585316378 | AB166: Other Farm Assets | AD166: 0 | AG166: Purchased Feed | AH166: 0 | AI166: 212600 | AL166: Other Farm Income | AN166: 0
R167: Leased Assets | T167: 525007.5 | W167: Leased Assets | Y167: 0 | AB167: Total Non-Current Assets | AD167: 2703000 | AG167: Feed & Water Inventory Change | AH167: 0 | AI167: 0 | AL167: Gross Farm Income | AN167: 667854
R168: Total Assets Managed | T168: 3498089 | W168: Total Assets Managed | Y168: 2810000 | AB168: Total Farm Assets Owned | AD168: 2738000 | AG168: Feed Costs | AI168: 329600 | AL168: Variable Costs
R169: RETURN ON TOTAL ASSETS (ROTA) | T169: 0.05862836109 | W169: RETURN ON TOTAL ASSETS (ROTA) | Y169: 0.03585316378 | AB169: RETURN ON ASSETS | AD169: 0.04193220973 | AG169: Total Variable Costs | AI169: 392693 | AL169: Herd Costs | AN169: 25899
R170: Liabilities | W170: Liabilities | AB170: Leased Assets | AD170: 0 | AG170: GROSS MARGIN | AI170: 387063 | AL170: Shed Costs | AN170: 15858
R171: Total Current Liabilities | W171: Total Current Liabilities | AB171: Total Assets Managed | AD171: 2738000 | AG171: Overhead Costs | AL171: Homegrown Feed | AN171: 83329
R172: Equipment Liabilities | T172: 62500 | W172: Equipment Liabilities | Y172: 0 | AB172: RETURN ON TOTAL ASSETS (ROTA) | AD172: 0.04193220973 | AG172: Employed Labour Cost | AI172: 50000 | AL172: Purchased Feed | AN172: 119595
R173: Long Term Liabilities | T173: 600000 | W173: Long Term Liabilities | Y173: 1000000 | AB173: Liabilities | AG173: Repairs & Maintenance | AI173: 39000 | AL173: Feed Inventory Change | AN173: -8900
R174: Total Non-Current Liabilities | T174: 662500 | W174: Total Non-Current Liabilities | Y174: 1000000 | AB174: Total Current Liabilities | AG174: Other Overhead Costs | AI174: 35000 | AL174: Water Inventory Change | AM174: -8900 | AN174: 0
R175: Total Liabilities | T175: 691171.5 | W175: Total Liabilities | Y175: 1000000 | AB175: Equipment Liabilities | AD175: 0 | AG175: Imputed Labour Cost | AI175: 115752.6098 | AL175: Feed Costs | AN175: 194024
R176: Equity | W176: Equity | AB176: Long Term Liabilities | AD176: 1000000 | AG176: Depreciation | AI176: 32500 | AL176: Total Variable Costs | AN176: 235781
R177: Total Equity | T177: 2281910 | W177: Total Equity | Y177: 1810000 | AB177: Total Non-Current Liabilities | AD177: 1000000 | AG177: Total Overhead Costs | AI177: 272252.6098 | AL177: GROSS MARGIN | AN177: 432073
R178: EQUITY AS % OF OWNED ASSETS | T178: 0.7675235274 | W178: EQUITY AS % OF OWNED ASSETS | Y178: 0.6441281139 | AB178: Total Liabilities | AD178: 1000000 | AG178: TOTAL OPERATING COST (Variable & Overhead) | AI178: 664945.6098 | AL178: Overhead Costs
R179: RETURN ON EQUITY | T179: 0.04959276439 | W179: RETURN ON EQUITY | Y179: 0.02803723217 | AB179: Equity | AG179: EARNINGS BEFORE INTEREST & TAX (EBIT) | AI179: 114810.3902 | AL179: Employed Labour Cost | AN179: 110000
R180: CHANGE IN NET WORTH | T180: 141280 | W180: CHANGE IN NET WORTH | Y180: 0 | AB180: Total Equity | AD180: 1738000 | AG180: COST OF PRODUCTION (COP) - EXCLUDING INVENTORY CHANGE | AI180: 664945.6098 | AL180: Farm Insurance | AN180: 8808
AB181: EQUITY AS % OF OWNED ASSETS | AD181: 0.634769905 | AG181: Livestock Inventory Change less Purchases | AI181: 0 | AL181: Repairs & Maintenance | AN181: 20610
R182: Report Ends | W182: Report Ends | AB182: RETURN ON EQUITY | AD182: 0.03729021302 | AG182: Feed & Water Inventory Change | AI182: 0 | AL182: Other Overhead Costs | AN182: 12049
AB183: CHANGE IN NET WORTH | AD183: 0 | AG183: COST OF PRODUCTION (COP) - INCLUDING INVENTORY CHANGE | AI183: 664945.6098 | AL183: Imputed Labour Cost | AN183: 87360.4602
AG184: Finance Costs | AL184: Depreciation | AN184: 25000
AB185: Report Ends | AG185: Interest Costs | AI185: 50000 | AL185: Total Overhead Costs | AN185: 263827.4602
AG186: Lease Costs | AI186: 0 | AL186: TOTAL OPERATING COST (Variable & Overhead) | AN186: 499608.4602
AG187: Total Finance Costs | AI187: 50000 | AL187: EARNINGS BEFORE INTEREST & TAX (EBIT) | AN187: 168245.5398
AG188: NET FARM INCOME | AI188: 64810.39024 | AL188: COST OF PRODUCTION (COP) - EXCLUDING INVENTORY CHANGE | AN188: 508508.4602
AL189: Livestock Inventory Change less Purchases | AN189: 13600
AG190: Wealth Report | AL190: Feed & Water Inventory Change | AN190: -8900
AI191: ($) | AL191: COST OF PRODUCTION (COP) - INCLUDING INVENTORY CHANGE | AN191: 513208.4602
AG192: Assets | AL192: Finance Costs
AG193: Feed Inventory | AI193: 35000 | AL193: Interest Costs | AN193: 35687
AG194: Carryover Water | AI194: 0 | AL194: Lease Costs | AN194: 56234
AG195: Other Current Assets | AI195: 0 | AL195: Total Finance Costs | AN195: 91921
AG196: Farm Management Deposits | AI196: 0 | AL196: NET FARM INCOME | AN196: 76324.5398
AG197: Total Current Assets | AI197: 35000
AG198: Land & Water | AH198: 2000000 | AI198: 2000000 | AL198: Wealth Report
AG199: Livestock | AH199: 0 | AI199: 453000 | AM199: Opening ($) | AN199: Closing ($)
AG200: Plant & Equipment | AI200: 250000 | AL200: Assets
... 28 more rows

Sheet Working (hidden)
A1: Working | C1: Version: | D1: 0.46 | E1: Date: | F1: March 2016 | K1: Store 1 | M1: Store 2 | O1: Store 3 | Q1: Defaults Detailed | S1: Defaults Intro
A2: Columns visible | B2: Cashflow | C2: MilkPrice | D2: Wages | E2: Stock | F2: Feed | K2: Heights | L2: Widths | M2: Heights | N2: Widths | O2: Heights | P2: Widths | Q2: Heights | R2: Widths | S2: Heights | T2: Widths
A3: Budget | B3: TRUE | C3: TRUE | D3: TRUE | E3: TRUE | F3: TRUE | J3: Number | Q3: 324 | R3: 70 | S3: 324 | T3: 70
A4: Actual | B4: TRUE | C4: FALSE | D4: FALSE | E4: FALSE | F4: TRUE | Q4: 24 | R4: 5.86 | S4: 24 | T4: 5.86
A5: Differences | B5: TRUE | C5: FALSE | D5: FALSE | E5: FALSE | F5: TRUE | Q5: 15.5 | R5: 31 | S5: 15.5 | T5: 31
A6: Months | B6: TRUE | C6: TRUE | D6: TRUE | E6: TRUE | F6: TRUE | Q6: 15.5 | R6: 20.57 | S6: 15.5 | T6: 20.57
A7: Quarters | B7: TRUE | C7: TRUE | D7: TRUE | E7: TRUE | F7: TRUE | Q7: 0 | R7: 1.29 | S7: 0 | T7: 1.29
A8: Annual | B8: TRUE | C8: TRUE | D8: TRUE | E8: TRUE | F8: TRUE | Q8: 0 | R8: 0 | S8: 0 | T8: 0
Q9: 0 | R9: 0 | S9: 0 | T9: 0
A10: Purchased fodder check boxes | Q10: 0 | R10: 0 | S10: 0 | T10: 0
A11: Fodder 1 | B11: FALSE | Q11: 0 | R11: 0 | S11: 0 | T11: 0
A12: Fodder 2 | B12: FALSE | Q12: 0 | R12: 0 | S12: 0 | T12: 0
A13: Fodder 3 | B13: FALSE | Q13: 0 | R13: 0 | S13: 0 | T13: 0
A14: Fodder 4 | B14: FALSE | Q14: 0 | R14: 0 | S14: 0 | T14: 0
A15: Fodder 5 | B15: FALSE | Q15: 0 | R15: 0 | S15: 0 | T15: 0
A16: Fodder 6 | B16: FALSE | Q16: 0 | R16: 0 | S16: 0 | T16: 0
Q17: 15.5 | R17: 0 | S17: 15.5 | T17: 0
A18: Purchased other check boxes | Q18: 15.5 | R18: 0 | S18: 15.5 | T18: 2.57
A19: Other 1 | B19: FALSE | Q19: 15.5 | R19: 0 | S19: 15.5 | T19: 10.71
A20: Other 2 | B20: FALSE | Q20: 15.5 | R20: 12 | S20: 15.5 | T20: 12
A21: Other 3 | B21: FALSE | Q21: 15.5 | R21: 12 | S21: 15.5 | T21: 0
A22: Other 4 | B22: FALSE | Q22: 15.5 | R22: 12 | S22: 15.5 | T22: 0
Q23: 15.5 | R23: 12 | S23: 15.5 | T23: 12
A24: Wages | B24: 4 | Q24: 15.5 | R24: 12 | S24: 15.5 | T24: 0
Q25: 15.5 | R25: 12 | S25: 15.5 | T25: 0
A26: Interest paid | B26: Compounding periods per year | Q26: 15.5 | R26: 12 | S26: 15.5 | T26: 12
A27: Daily | B27: 1 | C27: 365 | Q27: 15.5 | R27: 12 | S27: 15.5 | T27: 0
A28: Monthly | B28: 2 | C28: 12 | Q28: 15.5 | R28: 12 | S28: 15.5 | T28: 0
A29: Quarterly | B29: 3 | C29: 4 | Q29: 15.5 | R29: 12 | S29: 15.5 | T29: 0
A30: Half yearly | B30: 4 | C30: 2 | Q30: 15.5 | R30: 12 | S30: 15.5 | T30: 0
A31: Yearly | B31: 5 | C31: 1 | Q31: 15.5 | R31: 12 | S31: 15.5 | T31: 0
Q32: 15.5 | R32: 12 | S32: 15.5 | T32: 12
A33: Quarter | Q33: 15.5 | R33: 12 | S33: 15.5 | T33: 0
A34: Month | B34: Quarter | Q34: 15.5 | R34: 12 | S34: 15.5 | T34: 0
A35: 1 | B35: 3 | Q35: 15.5 | R35: 12 | S35: 15.5 | T35: 12
A36: 2 | B36: 3 | Q36: 15.5 | R36: 12 | S36: 15.5 | T36: 0
A37: 3 | B37: 3 | Q37: 15.5 | R37: 12 | S37: 15.5 | T37: 0
A38: 4 | B38: 4 | Q38: 15.5 | R38: 12 | S38: 15.5 | T38: 12
A39: 5 | B39: 4 | Q39: 15.5 | R39: 12 | S39: 15.5 | T39: 0
A40: 6 | B40: 4 | Q40: 15.5 | R40: 12 | S40: 15.5 | T40: 0
A41: 7 | B41: 1 | Q41: 15.5 | R41: 12 | S41: 15.5 | T41: 0
A42: 8 | B42: 1 | Q42: 15.5 | R42: 12 | S42: 15.5 | T42: 0
A43: 9 | B43: 1 | Q43: 15.5 | R43: 12 | S43: 15.5 | T43: 0
A44: 10 | B44: 2 | Q44: 15.5 | R44: 12 | S44: 15.5 | T44: 12
A45: 11 | B45: 2 | Q45: 15.5 | R45: 12 | S45: 15.5 | T45: 0
A46: 12 | B46: 2 | Q46: 15.5 | R46: 12 | S46: 15.5 | T46: 0
Q47: 15.5 | R47: 12 | S47: 15.5 | T47: 12
A48: Copy form | Q48: 15.5 | R48: 12 | S48: 15.5 | T48: 0
A49: Copy | B49: 3 | Q49: 15.5 | R49: 12 | S49: 15.5 | T49: 0
A50: Period | B50: 2 | Q50: 15.5 | R50: 12 | S50: 15.5 | T50: 12
A51: Remember | B51: TRUE | Q51: 15.5 | R51: 12 | S51: 15.5 | T51: 0
Q52: 15.5 | R52: 12 | S52: 15.5 | T52: 0
A53: Fertiliser Group | Q53: 15.5 | R53: 12 | S53: 15.5 | T53: 0
A54: =#REF! ->  | Q54: 15.5 | R54: 12 | S54: 15.5 | T54: 0
A55: =#REF! ->  | Q55: 15.5 | R55: 12 | S55: 15.5 | T55: 0
A56: =#REF! ->  | Q56: 15.5 | R56: 12 | S56: 15.5 | T56: 12
A57: =#REF! ->  | Q57: 15.5 | R57: 12 | S57: 15.5 | T57: 0
A58: =#REF! ->  | Q58: 15.5 | R58: 12 | S58: 15.5 | T58: 0
Q59: 15.5 | R59: 12 | S59: 15.5 | T59: 12
A60: Enter form | Q60: 15.5 | R60: 12 | S60: 15.5 | T60: 0
A61: Type | B61: 1 | Q61: 15.5 | R61: 12 | S61: 15.5 | T61: 0
A62: Period | B62: 1 | Q62: 15.5 | R62: 12 | S62: 15.5 | T62: 12
A63: Annual | B63: FALSE | Q63: 15.5 | R63: 12 | S63: 15.5 | T63: 0
A64: Remember | B64: TRUE | Q64: 15.5 | R64: 12 | S64: 15.5 | T64: 0
Q65: 15.5 | R65: 12 | S65: 15.5 | T65: 0
A66: Milk price units | B66: 2 | Q66: 15.5 | R66: 12 | S66: 15.5 | T66: 0
A67: cents per litre | Q67: 15.5 | R67: 12 | S67: 15.5 | T67: 0
A68: $/kg milk solids | Q68: 0 | R68: 12 | S68: 0 | T68: 12
Q69: 0 | R69: 12 | S69: 0 | T69: 0
Q70: 0 | R70: 12 | S70: 0 | T70: 0
A71: Gotos | B71: 10 | Q71: 0 | R71: 12 | S71: 0 | T71: 12
A72: Goto section… | Q72: 15.5 | R72: 12 | S72: 15.5 | T72: 0
A73: Milk production | Q73: 15.5 | R73: 12 | S73: 15.5 | T73: 0
A74: Purchased feed | Q74: 15.5 | S74: 15.5
A75: Income | Q75: 15.5 | S75: 15.5
A76: Variable costs | Q76: 15.5 | S76: 15.5
A77: Overhead costs | Q77: 15.5 | S77: 15.5
A78: Finance costs | Q78: 15.5 | S78: 15.5
A79: Capital costs | Q79: 15.5 | S79: 15.5
A80: Capital sales | Q80: 15.5 | S80: 15.5
A81: Non farm income | Q81: 15.5 | S81: 15.5
A82: Non farm expenses | Q82: 15.5 | S82: 15.5
A83: Tax | Q83: 15.5 | S83: 15.5
A84: Net cashflow total | Q84: 15.5 | S84: 15.5
Q85: 15.5 | S85: 15.5
A86: Detailed Sheets | B86: RadioB | C86: Budget | D86: Actual | Q86: 15.5 | S86: 15.5
A87: Fertiliser | C87: FALSE | D87: FALSE | Q87: 15.5 | S87: 15.5
A88: Wages | B88: 4 | C88: FALSE | D88: FALSE | Q88: 15.5 | S88: 15.5
A89: Stock | C89: FALSE | D89: FALSE | Q89: 15.5 | S89: 15.5
A90: Feed | C90: FALSE | D90: FALSE | Q90: 15.5 | S90: 15.5
A91: Leases | C91: FALSE | D91: FALSE | Q91: 15.5 | S91: 15.5
A92: Health | C92: FALSE | D92: FALSE | Q92: 15.5 | S92: 15.5
A93: AI | C93: FALSE | D93: FALSE | Q93: 15.5 | S93: 15.5
A94: MortgageHP | C94: FALSE | D94: FALSE | Q94: 15.5 | S94: 15.5
A95: FMD | C95: FALSE | D95: FALSE | Q95: 15.5 | S95: 15.5
Q96: 15.5 | S96: 15.5
A97: Lease Units | Q97: 15.5 | S97: 15.5
A98: Monthly | Q98: 15.5 | S98: 15.5
A99: Quarterly | Q99: 15.5 | S99: 15.5
Q100: 15.5 | S100: 15.5
A101: Stock Classes | B101: Offset | Q101: 15.5 | S101: 15.5
A102: Milkers | B102: 10 | Q102: 15.5 | S102: 15.5
A103: Dries | B103: 18 | Q103: 15.5 | S103: 15.5
A104: R2 Heifers | B104: 25 | Q104: 15.5 | S104: 15.5
A105: R1 Heifers | B105: 32 | Q105: 15.5 | S105: 15.5
A106: R1 Bulls | B106: 40 | Q106: 15.5 | S106: 15.5
Q107: 15.5 | S107: 15.5
A108: Current year income | B108: 1 | Q108: 15.5 | S108: 15.5
Q109: 15.5 | S109: 15.5
A110: Summary year menu | B110: Offset | C110: DropDown | Q110: 14.25 | S110: 14.25
A111: Summary total offset | B111: =IF(C111<=1,0,(C111-1)*17) -> 0 | C111: 1 | Q111: 14.25 | S111: 14.25
A112: =StartYear &"/"&RIGHT(TEXT(StartYear+1,"####"),2) ->  | Q112: 14.25 | S112: 14.25
A113: =StartYear+1 &"/"&RIGHT(TEXT(StartYear+2,"####"),2) ->  | Q113: 14.25 | S113: 14.25
A114: =StartYear+2 &"/"&RIGHT(TEXT(StartYear+3,"####"),2) ->  | Q114: 14.25 | S114: 14.25
Q115: 14.25 | S115: 14.25
A116: Dashboard Text Combos | B116: User | C116: Defaults | Q116: 14.25 | S116: 14.25
A117: Combo 1 | B117: 74 | C117: 74 | Q117: 14.25 | S117: 14.25
A118: Combo 2 | B118: 104 | C118: 104 | Q118: 14.25 | S118: 14.25
A119: Combo 3 | B119: 106 | C119: 106 | Q119: 14.25 | S119: 14.25
A120: Combo 4 | B120: 121 | C120: 121 | Q120: 14.25 | S120: 14.25
A121: Combo 5 | B121: 128 | C121: 128 | Q121: 14.25 | S121: 14.25
A122: Combo 6 | B122: 158 | C122: 158 | Q122: 14.25 | S122: 14.25
A123: Combo 7 | B123: 190 | C123: 190 | Q123: 14.25 | S123: 14.25
A124: Combo 8 | B124: 192 | C124: 192 | Q124: 14.25 | S124: 14.25
A125: Combo 9 | B125: 202 | C125: 202 | Q125: 14.25 | S125: 14.25
A126: Combo 10 | B126: 212 | C126: 212 | Q126: 14.25 | S126: 14.25
A127: Combo 11 | B127: 246 | C127: 246 | Q127: 14.25 | S127: 14.25
A128: Combo 12 | B128: 258 | C128: 258 | Q128: 14.25 | S128: 14.25
A129: Combo 13 | B129: 287 | C129: 287 | Q129: 15.5 | S129: 15.5
A130: Combo 14 | B130: 293 | C130: 293 | Q130: 15.5 | S130: 15.5
A131: Combo 15 | B131: 311 | C131: 311 | Q131: 15.5 | S131: 15.5
Q132: 15.5 | S132: 15.5
A133: Dashboard Graph Combos | B133: User | C133: Defaults | Q133: 15.5 | S133: 15.5
A134: Combo 1 | B134: 1 | C134: 1 | Q134: 15.5 | S134: 15.5
A135: Combo 2 | B135: 3 | C135: 3 | Q135: 15.5 | S135: 15.5
A136: Combo 3 | B136: 9 | C136: 9 | Q136: 15.5 | S136: 15.5
Q137: 15.5 | S137: 15.5
A138: Constants | Q138: 15.5 | S138: 15.5
A139: Milk weight | B139: 1.03 | Q139: 15.5 | S139: 15.5
A140: Distance walked | B140: 2000 | Q140: 15.5 | S140: 15.5
A141: Height walked | B141: 0 | Q141: 15.5 | S141: 15.5
A142: Position changes | B142: 10 | Q142: 15.5 | S142: 15.5
A143: Time standing | B143: 14 | Q143: 15.5 | S143: 15.5
A144: Milk lactose | B144: 0.05 | Q144: 15.5 | S144: 15.5
A145: True protein | B145: 0.94 | Q145: 15.5 | S145: 15.5
Q146: 15.5 | S146: 15.5
Q147: 15.5 | S147: 15.5
Q148: 15.5 | S148: 15.5
Q149: 15.5 | S149: 15.5
Q150: 15.5 | S150: 15.5
Q151: 15.5 | S151: 15.5
Q152: 15.5 | S152: 15.5
Q153: 15.5 | S153: 15.5
Q154: 15.5 | S154: 15.5
Q155: 15.5 | S155: 15.5
Q156: 15.5 | S156: 15.5
Q157: 15.5 | S157: 15.5
Q158: 15.5 | S158: 15.5
Q159: 15.5 | S159: 15.5
Q160: 15.5 | S160: 15.5
Q161: 15.5 | S161: 15.5
Q162: 15.5 | S162: 15.5
Q163: 15.5 | S163: 15.5
Q164: 15.5 | S164: 15.5
Q165: 15.5 | S165: 15.5
Q166: 15.5 | S166: 15.5
Q167: 15.5 | S167: 15.5
Q168: 15.5 | S168: 15.5
Q169: 15.5 | S169: 15.5
Q170: 15.5 | S170: 15.5
Q171: 15.5 | S171: 15.5
Q172: 15.5 | S172: 15.5
Q173: 15.5 | S173: 15.5
Q174: 15.5 | S174: 15.5
Q175: 15.5 | S175: 15.5
Q176: 15.5 | S176: 15.5
Q177: 15.5 | S177: 15.5
Q178: 15.5 | S178: 15.5
Q179: 15.5 | S179: 15.5
Q180: 15.5 | S180: 15.5
Q181: 15.5 | S181: 15.5
Q182: 15.5 | S182: 15.5
Q183: 15.5 | S183: 15.5
Q184: 15.5 | S184: 15.5
Q185: 15.5 | S185: 15.5
Q186: 15.5 | S186: 15.5
Q187: 15.5 | S187: 15.5
Q188: 15.5 | S188: 15.5
Q189: 15.5 | S189: 15.5
Q190: 15.5 | S190: 15.5
Q191: 15.5 | S191: 15.5
Q192: 15.5 | S192: 15.5
Q193: 15.5 | S193: 15.5
Q194: 15.5 | S194: 15.5
Q195: 15.5 | S195: 15.5
Q196: 15.5 | S196: 15.5
Q197: 15.5 | S197: 15.5
Q198: 15.5 | S198: 15.5
Q199: 15.5 | S199: 15.5
Q200: 15.5 | S200: 15.5
... 127 more rows
